Workbook

Sheet Intro & Checklist
D1: Version 3.0
B2: Production Carbon Calculator General Info & Checklist
B3: This calculator measures the carbon emissions generated by your production based on information you enter on emission sources such as utility electricity and heating, fuel, flight and hotel use. Information for each emission source is collected on a separate worksheet tab. Information is not required for every tab, and should only be entered for the emission sources associated with your production. The table below provides a general description of the information collected and data collection status for each emission source data collection worksheet.
B5: Click on a tab name to link to the sheet
B6: Status | C6: Calculator Tab | D6: Description | E6: Potential Sources of Data
B7: ='1-Production Info'!J10 -> Data Not Entered | C7: 1-Production Information | D7: Calculator contact information & general production information including production name, headquarters location & schedule. Production location information (e.g., production offices, warehouses, stages) used for utility electricity, natural gas & heating oil tracking
B8: ='2-Electricity'!N10 -> Data Not Entered | C8: 2-Electricity | D8: Total electricity used for all locations entered in Production Info | E8: utility heating bills location lease or real estate information procurement (natural gas or heating oil cost)
B9: ='3-Nat Gas & Heating Oil'!P8 -> Data Not Entered | C9: 3-Natural Gas & Heating | D9: Total natural gas and/or heating oil used for all locations entered in Production Info, if appropriate | E9: electricity bills location lease or real estate information procurement (electricity cost)
B10: ='4-Fuel'!O9 -> Data Not Entered | C10: 4-Fuel | D10: Fuel used for equipment (e.g., generators) and vehicles
B11: ='5-Hotels-Housing'!L6 -> Data Not Entered | C11: 5-Hotels & Housing | D11: Number of days and location of hotels, houses and condos rented during the production
B12: ='6-Commercial Air Travel'!N8 -> Data Not Entered | C12: 6-Commercial Air Travel | D12: Passenger miles and routes (if applicable) traveled on commercial airlines
B13: ='7-Charter and Heli Flights'!L6 -> Data Not Entered | C13: 7-Charter & Helicopter Flights | D13: Fuel, hours or distance traveled on charter jets and helicopters
B14: N/A | C14: 8-Practices & Procurement | D14: Waste management details including number and cost of bins, and amount of waste generated, recycled and sent to landfill Purchase information on products including wood, paint, adhesives, styrofoam, plastic water bottles, and/or other green purchases
B15: =IF(Results!E10="Data Error", "Data Input Error", IF(Results!E10>0, "Data Entered Correctly", "Data Not Entered")) -> Data Not Entered | C15: Results | D15: Summarizes and presents emissions results based on the information added in tabs 1 through 7 (tab 8 information is not used in emission calculations)
D16: Updated September 2013

Sheet 1-Production Info
B2: Click for Checklist | D2: Required field | F2: Input not required
N3: Instructions
B4: Production Calculator Contact | F4: Production Coordinator Sign Off
B5: Name | C5: Phone Number | D5: Date | F5: Name | G5: Date | O5: 1. Production Calculator Contact Information: Enter your name, information and the date
O7: 2. Production Coordinator Sign Off: Enter the name of the production coordinator and date of calculator review and approval (if required)
B8: =C9&" Production Information" -> Production Information
B9: Production Name: | D9: Start Date: | F9: End Date: | O9: 3. Production Information: Enter the name, start and end date, headquarter location and production length information
B10: Headquarter Office Country: | D10: Number of Weeks for Prep: | F10: Number of Location Days: | I10: Status: | J10: =IF(ISERROR(SUM(K:K)),"Data Input Error",IF((L16>0),"Data Entered Correctly","Data Not Entered")) -> Data Not Entered | O10: 4. Location Information- Location information is used for the Electricity and Natural Gas and Heating Oil data entry and calculations. -Enter the name of each production location into column B. -Select the location type (e.g., Office, Stage(s)) from column C. -Select the location country from column D. -If the location is in the US, Canada or Australia, select the state or province from the dropdown list in column E. -Enter the address, city & postal code into columns F and G, respectively, if desired.
B11: Headquarter State/Province: | D11: Number of Weeks for Shooting: | F11: Number of Set Days: | I11: =IF(OR(C10="USA", C10="Canada", C10= "Australia"), "StatesList", "") -> 
B12: Category of Film by Budget: | D12: Number of Weeks for Wrap: | F12: Enter values for the season | I12: Film only--HIDE ROW IF TV PRODUCTION
B13: Season Number: | D13: Number of Weeks for Wrap: | I13: TV only- HIDE ROW IF FILM
B14: For each production location, enter the name, selet the location type and country. Additional address information is optional. These locations are used on the electricity and natural gas & heating oil tabs.
B15: Locations | I15: Location Calculations
B16: Location Name | C16: Location Type | D16: Country | E16: State/Province | F16: Address (optional) | G16: City & Postal Code (optional) | I16: StatesDropdown | J16: Elec Region | K16: eGRID Factor | L16: =SUM(K:K) -> 0
I17: =IF(OR(D17="USA", D17="Canada", D17= "Australia"), "StatesList", "") ->  | J17: =IF(ISBLANK(D17),"", IF(OR(D17="Canada", D17="Australia", D17="USA"), CONCATENATE(D17,E17), D17)) ->  | K17: =IF(ISBLANK(B17), "", VLOOKUP(J17,ElecFactor,5,FALSE)) -> 
I18: =IF(OR(D18="USA", D18="Canada", D18= "Australia"), "StatesList", "") ->  | J18: =IF(ISBLANK(D18),"", IF(OR(D18="Canada", D18="Australia", D18="USA"), CONCATENATE(D18,E18), D18)) ->  | K18: =IF(ISBLANK(B18), "", VLOOKUP(J18,ElecFactor,5,FALSE)) -> 
J41: =IF(ISBLANK(D41),"", IF(OR(D41="Canada", D41="Australia", D41="USA"), CONCATENATE(D41,E41), D41)) -> 

Sheet 2-Electricity
B2: Click for Checklist | H2: Required field | J2: Input not required
B4: ='1-Production Info'!C9& " Purchased Electricity" -> Purchased Electricity | W4: Instructions
B6: Did You Purchase Renewable Energy or RECs? | E6: Comments | X6: 1. General Electricity Questions: Select Yes or No from the dropdowns to identify if you purchased renewable energy, RECs or used power drops on your production. Enter comments about your production energy use (optional)
B8: Did you use power drops?
B9: How much energy was powered from power drops? | X9: 2. Location: Select a Location Name from the dropdown box. Locations are entered in column B of the Production Info Tab
M10: Status: | N10: =IF(ISERROR(U14),"Data Input Error",IF(U14<>SUM(U15:U17),"Multiple Options Entered",IF(U14>0,"Data Entered Correctly","Data Not Entered"))) -> Data Not Entered | X10: 3. From & End Date (optional):- Enter the start and end date of the location electricity information (e.g., the dates on the invoice) into column C and D, respectively
B11: Locations entered in Production Info tab | E11: Enter information only for ONE option for each location
B12: Location Name | C12: From Date (optional) | D12: End Date (optional) | E12: PREFERRED OPTION | F12: Second Option | I12: Third Option | K12: Option Selected | M12: Electricity Calculations | T12: Emission Summary | X12: 4. Enter data for ONE Option for Electricity Information for each location entered:
E13: Electricity Use (kWh) | F13: Total Area (e.g., Total Square Feet) | G13: Units | H13: Days Used | I13: Total Cost of Electricity (US$) | J13: Cost Data Source | M13: ElectricityCode | N13: ElecFactor (kgCO2/kWh) | O13: Square Footage | P13: CBECskWh | Q13: CostkWh | R13: CO2 emissions | T13: Emissions | U13: kg CO2 | V13: kWh
K14: =IF(AND(E14>0,I14>0),"Multiple Entered!",IF(AND(F14>0,I14>0),"Multiple Entered!",IF(AND(E14>0,F14>0),"Multiple Entered!",IF(E14>0,"Preferred Option",IF(F14>0,"2nd Option",IF(I14>0,"3rd Option","")))))) ->  | M14: =IF(ISBLANK(B14), "", VLOOKUP(B14, LocationInfo, 9, FALSE)) ->  | N14: =IF(ISBLANK(B14), "", VLOOKUP(M14,ElecFactor,5,FALSE)) ->  | O14: =IF(ISBLANK(G14), "", VLOOKUP(G14,AreaConvert,2,FALSE)*F14) ->  | P14: =IF(ISBLANK(H14),"",(VLOOKUP((VLOOKUP(VLOOKUP(B14,LocationInfo,2,FALSE),CBECSTypes,2,FALSE)),CBECSFactors,2,FALSE)*O14*H14/365)) ->  | Q14: =IF(I14>0, I14/VLOOKUP("Electricity", FuelCost,2,FALSE), "") ->  | R14: =IF(ISBLANK(B14), "", IF(E14>0,E14,IF(F14>0,P14,IF(I14>0,Q14,"")))*N14) ->  | T14: Total | U14: =SUM(R:R) -> 0 | V14: =SUM(V15:V17) -> 0 | Y14: 4.1 Preferred Option- Actual Electricity Use: Enter the actual electricity use (in kWh) for the selected location into column E
K15: =IF(AND(E15>0,I15>0),"Multiple Entered!",IF(AND(F15>0,I15>0),"Multiple Entered!",IF(AND(E15>0,F15>0),"Multiple Entered!",IF(E15>0,"Preferred Option",IF(F15>0,"2nd Option",IF(I15>0,"3rd Option","")))))) ->  | M15: =IF(ISBLANK(B15), "", VLOOKUP(B15, LocationInfo, 9, FALSE)) ->  | O15: =IF(ISBLANK(G15), "", VLOOKUP(G15,AreaConvert,2,FALSE)*F15) ->  | T15: Preferred Option (kWh) | U15: =SUMIF(E:E, ">0",R:R ) -> 0 | V15: =SUM(E:E) -> 0
T16: 2nd Option (square footage) | U16: =SUMIF(P:P, ">0",R:R ) -> 0 | V16: =SUM(P:P) -> 0 | Y16: 4.2 Second Option- Area: Enter the location area in column F, select the area units from column G, and enter the number of days the location was used in column H
T17: 3rd Option (Cost) | U17: =SUMIF(Q:Q, ">0",R:R ) -> 0 | V17: =SUM(Q:Q) -> 0
Y19: 4.3 Third Option- Cost: Enter the total cost of electricity for the location in column I, and select the cost data source (invoice or rent) from column J
W23: Copy Facility Information to Natural Gas Tab: Click the green button to transfer the location names and Options 2 information (area, units and days used) to the Natural Gas and Heating Oil tab. Clicking the button multiple times will add the same values multiple times.

Sheet 3-Nat Gas & Heating Oil
B2: Click for Checklist | J2: Required field | L2: Input not required
B4: ='1-Production Info'!C9& " Natural Gas & Fuel Oil" -> Natural Gas & Fuel Oil | Y4: Instructions
B6: Comments | Z6: 1. General Natural Gas & Heating Oil Questions: Enter comments about natural gas and heating oil use for your production (optional)
O8: Status: | P8: =IF(ISERROR(X12),"Data Input Error",IF(X12<>SUM(X13:X15),"Multiple Options Entered",IF(X12>0,"Data Entered Correctly","Data Not Entered"))) -> Data Not Entered | Z8: 2. Location-Column B: Select a Location Name from the dropdown box. Locations are entered in Column B of the Production Info Tab
B9: Locations entered in Production Info tab | F9: Enter information only for ONE option for each location
B10: Location Name | C10: From Date (optional) | D10: End Date (optional) | E10: Fuel Type | F10: PREFERRED OPTION | H10: Second Option | K10: Third Option | M10: Option Selected | O10: Natural Gas & Heating Oil Calculations | W10: Emission Summary
F11: Fuel Use Amount | G11: Fuel Use Units | H11: Area | I11: Units | J11: Days Used | K11: Total Cost of Fuel (US$) | L11: Cost Data Source | O11: Standard Fuel Use Amount | P11: Standard Fuel Use Units | Q11: EF (kg CO2/unit) | R11: Square Footage | S11: Fuel Use, CBECs-Est. (Std Units) | T11: Fuel Use, Cost-Est. (Std Unit) | U11: CO2 emissions (kg) | W11: Emissions | X11: kg CO2 | Z11: 3. From & End Date (optional)- Column C & D: enter the start and end date of the location electricity information (e.g., the dates on the invoice)
M12: =IF(AND(F12>0,K12>0),"Multiple Values!",IF(AND(H12>0,K12>0),"Multiple Values!",IF(AND(F12>0,H12>0),"Multiple Values!",IF(F12>0,"Preferred Option",IF(H12>0,"2nd Option",IF(K12>0,"3rd Option","")))))) ->  | O12: =IF(ISBLANK(F12), "", (IF(E12="Natural gas", VLOOKUP(G12,NGConvert,2,FALSE),IF(E12="Fuel Oil", VLOOKUP(G12,FOConvert,2,FALSE),""))*F12)) ->  | P12: =IF(E12="Natural Gas", "Cubic Feet", IF(E12="Fuel Oil", "Gallons","")) ->  | Q12: =IF(ISBLANK(E12), "", VLOOKUP(E12,FuelFactors, 2, FALSE)) ->  | R12: =IF(H12>0, (VLOOKUP(I12,AreaConvert,2,FALSE)*H12), "") ->  | S12: =IF(ISBLANK(J12),"",((VLOOKUP((VLOOKUP(VLOOKUP(B12,LocationInfo,2,FALSE),CBECSTypes,2,FALSE)),CBECSFactors,IF(E12="Natural Gas",3,4),FALSE))*R12*J12/365)) ->  | T12: =IF(ISBLANK(K12), "", K12/VLOOKUP(E12,FuelCost,2,FALSE)) ->  | U12: =IF((F12+H12+K12)=0,"",IF(F12>0,O12,IF(J12>0,S12,IF(K12>0,T12,"")))*Q12) ->  | W12: Total | X12: =SUM(U:U) -> 0 | Z12: 4. Fuel Type- Select the fuel type (natural gas or heating oil) from the dropdown list in column D
M13: =IF(AND(F13>0,K13>0),"Multiple Values!",IF(AND(H13>0,K13>0),"Multiple Values!",IF(AND(F13>0,H13>0),"Multiple Values!",IF(F13>0,"Preferred Option",IF(H13>0,"2nd Option",IF(K13>0,"3rd Option","")))))) ->  | O13: =IF(ISBLANK(F13), "", (IF(E13="Natural gas", VLOOKUP(G13,NGConvert,2,FALSE),IF(E13="Fuel Oil", VLOOKUP(G13,FOConvert,2,FALSE),""))*F13)) ->  | P13: =IF(E13="Natural Gas", "Cubic Feet", IF(E13="Fuel Oil", "Gallons","")) ->  | Q13: =IF(ISBLANK(E13), "", VLOOKUP(E13,FuelFactors, 2, FALSE)) ->  | R13: =IF(H13>0, (VLOOKUP(I13,AreaConvert,2,FALSE)*H13), "") ->  | S13: =IF(ISBLANK(J13),"",((VLOOKUP((VLOOKUP(VLOOKUP(B13,LocationInfo,2,FALSE),CBECSTypes,2,FALSE)),CBECSFactors,IF(E13="Natural Gas",3,4),FALSE))*R13*J13/365)) ->  | T13: =IF(ISBLANK(K13), "", K13/VLOOKUP(E13,FuelCost,2,FALSE)) ->  | U13: =IF((F13+H13+K13)=0,"",IF(F13>0,O13,IF(J13>0,S13,IF(K13>0,T13,"")))*Q13) ->  | W13: Preferred Option (fuel use) | X13: =SUMIF(F:F, ">0",U:U ) -> 0
W14: 2nd Option (square footage) | X14: =SUMIF(S:S, ">0",U:U ) -> 0 | Z14: 5. Enter data for ONE option for Natural Gas or Heating Oil Information for each location entered:
W15: 3rd Option (cost) | X15: =SUMIF(T:T, ">0",U:U ) -> 0
AA16: 5.1 Preferred Option- Actual Fuel Use: Enter the actual natural gas or heating oil used for the selected location in column F and select the associated unit (e.g., cubic feet) for the fuel use amount in column G
AA20: 5.2 Second Option- Area: Enter the total area of the location in column H, select the area units from column I (e.g., square feet), and enter the number of days the location was used in column J
AA23: 5.3 Third Option- Cost: Enter the total cost of natural gas or fuel oil for the location in Column K, and select the cost data source (invoice or rent) from column L

Sheet 4-Fuel
B2: Click for Checklist | I2: Required field | K2: Input not required
B4: ='1-Production Info'!C9& " Fuel" -> Fuel | W4: Instructions
B6: How many hybrid vehicles did you use? | E6: Comments | X6: 1. General Fuel Questions: Select Yes or No from the dropdowns to identify if you used hybrid vehicles or enforced the no-idling policy on your set. Enter comments about your production fuel use (optional)
B8: Did you enforce the "No-Idling" polIcy on your set? | X8: 2. Equipment Type: Select an equipment type from the dropdown list in column B. If the equipment type is unknown or you would like to enter information for multiple types of equipment, select “Other"
N9: Status: | O9: =IF(ISERROR(V13),"Data Input Error",IF(V13<>SUM(V14:V16),"Multiple Options Entered",IF(V13>0,"Data Entered Correctly","Data Not Entered"))) -> Data Not Entered | X9: 3. From & End Date (optional): Enter the start and end date of the equipment fuel use information information into columns C and D, respectively
B10: Select equipment and fuel type. Dates and reason for use are optional. | G10: Enter all information for ONE option for each equipment and fuel type combination
B11: Equipment Type | C11: From Date (optional) | D11: End Date (optional) | E11: Reason for Use (Optional) | F11: Fuel Type | G11: PREFERRED OPTION | I11: Second Option | K11: Third Option | L11: Option Selected | N11: Fuel Calculations | U11: Emission Summary
G12: Fuel Use Amount | H12: Fuel Use Units | I12: Total Cost of Fuel (US$) | J12: Average US$ per gallon | K12: Miles Driven (Vehicles) | N12: Equipment Type | O12: Standard Fuel Use Amount (gal) | P12: Fuel EF (kg CO2/gal) | Q12: Fuel Use - Cost Est. (Gallons) | R12: Fuel Use - Miles Est. (Gallons) | S12: CO2 emissions (kg) | U12: Emissions | V12: kg CO2 | X12: 4. Reason for Use (optional): select the reason for the equipment use (e.g., personal, production) from the dropdown list in column E
L13: =IF(AND(G13>0,K13>0),"Multiple Entered!",IF(AND(I13>0,K13>0),"Multiple Entered!",IF(AND(G13>0,I13>0),"Multiple Entered!",IF(G13>0,"Preferred Option",IF(I13>0,"2nd Option",IF(K13>0,"3rd Option","")))))) ->  | N13: =IF(ISNA(VLOOKUP(B13,EquipmentTypes,2,FALSE)),"",(VLOOKUP(B13,EquipmentTypes,2,FALSE))) ->  | O13: =IF(ISBLANK(G13), "", (VLOOKUP(H13,FuelUnitsConvert, 2,FALSE)*G13)) ->  | P13: =IF(ISBLANK(F13), "", VLOOKUP(F13,FuelFactors,2,FALSE)) ->  | Q13: =IF(ISBLANK(I13), "", I13/(IF(ISBLANK(J13),VLOOKUP(F13,FuelCost,2,FALSE),J13))) ->  | R13: =IF(K13>0, K13/VLOOKUP(B13, MPG, 2, FALSE), "") ->  | S13: =IF(L13<>"", IF(G13>0,O13,IF(I13>0,Q13, IF(K13>0,R13,"")))*P13, "") ->  | U13: Total | V13: =SUM(S:S) -> 0 | X13: 5. Fuel Type: Select the type of fuel used for the equipment from the dropdown list in column F
L14: =IF(AND(G14>0,K14>0),"Multiple Entered!",IF(AND(I14>0,K14>0),"Multiple Entered!",IF(AND(G14>0,I14>0),"Multiple Entered!",IF(G14>0,"Preferred Option",IF(I14>0,"2nd Option",IF(K14>0,"3rd Option","")))))) ->  | S14: =IF(L14<>"", IF(G14>0,O14,IF(I14>0,Q14, IF(K14>0,R14,"")))*P14, "") ->  | U14: Preferred Option (fuel use) | V14: =SUMIF(G:G, ">0",S:S ) -> 0 | X14: 6. Enter data for ONE option for Fuel Use:
U15: 2nd Option (square footage) | V15: =SUMIF(I:I, ">0",S:S ) -> 0 | Y15: 6.1 Preferred Option- Actual Fuel Use: Enter the actual fuel use in column G and select the associated units (e.g., gallons) from the dropdown list in column H
U16: 3rd Option (cost) | V16: =SUMIF(K:K, ">0",S:S ) -> 0
Y19: 6.2 Second Option- Cost: Enter the total cost of the equipment fuel in US dollars in column I. Enter the average cost per gallon of the fuel in column J. If the average cost is unknown, the following links have regional cost information:
Y24: Gasoline: | Z24: http://www.eia.doe.gov/oil_gas/petroleum/data_publications/wrgp/mogas_home_page.html
Y26: Diesel: | Z26: http://tonto.eia.doe.gov/oog/info/wohdp/diesel.asp
Y27: Alternative Fuels: | Z27: http://www.altfuelprices.com/
Y29: 6.3 Third Option- Distance: This option applies only to vehicles. Enter the total miles driven for the selected vehicle type

Sheet 5-Hotels-Housing
B2: Click for Checklist | E2: Required field | G2: Input not required
B4: ='1-Production Info'!C9& " Hotels & Housing" -> Hotels & Housing | T4: Instructions
B6: Did you choose a hotel because it is considered "green"? | E6: Comments | K6: Status: | L6: =IF(ISERROR(S12),"Data Input Error",IF(S12>0,"Data Entered Correctly","Data Not Entered")) -> Data Not Entered | U6: 1. General Hotel & Housing Questions: Select Yes or No from the dropdown to identify if you choose a hotel because it is considered “green.” Enter comments about your production hotel & housing use (optional)
B9: Select the room type and location (city is optional). Enter the number of rooms (for hotels only) and number of nights stayed at the hotel or house. (Option 1) | K9: Hotels & Housing Calculations | R9: Emission Summary
B10: Or enter the total number of nights (Option 2) | F10: Option 1 | H10: Option 2
B11: Room Type | C11: City (Optional) | D11: Country | E11: State/Province | F11: Number of Rooms (for hotels only) | G11: Number of Nights | H11: Total Number of Nights | K11: StatesList | L11: EF (kg CO2/kWh) | M11: kWh/year | N11: Room-Nights (years) (Option 1) | O11: Total Nights (years) (Option 2) | P11: CO2 emissions (kg) | R11: Emissions | S11: kg CO2 | U11: 2. Room Type: Select a room or house type from the drop down list in column B
K12: =IF(OR(D12="USA", D12="Canada", D12= "Australia"), "StatesList", "") ->  | L12: =IF(ISBLANK(D12),"",IF(OR(D12="USA",D12="Australia",D12="Canada"),VLOOKUP(CONCATENATE(D12,E12),ElecFactor,5,FALSE),VLOOKUP(D12,ElecFactor,5,FALSE))) ->  | M12: =IF(ISTEXT(B12),VLOOKUP(B12, HotelFactors, 4, FALSE),"") ->  | N12: =IF(ISBLANK(B12),"",IF(H12>0,1,IF(OR(B12="Apartment/Condo", B12 = "Average House", B12= "Large House"),G12,G12*F12)/365)) ->  | O12: =IF(ISBLANK(B12),"",IF(F12+G12>0,1,H12/365)) ->  | P12: =IF(AND(ISBLANK(B12), ISBLANK(G12)), "", L12*M12*N12*O12) ->  | R12: Total | S12: =SUM(P:P) -> 0 | U12: 3. Hotel/Housing Location: -Enter the hotel or housing city into column C (optional) -Select the country from the dropdown list in column D -Select the state or province from column E (if required)
K13: =IF(OR(D13="USA", D13="Canada", D13= "Australia"), "StatesList", "") ->  | N13: =IF(ISBLANK(B13),"",IF(H13>0,1,IF(OR(B13="Apartment/Condo", B13 = "Average House", B13= "Large House"),G13,G13*F13)/365)) ->  | O13: =IF(ISBLANK(B13),"",IF(F13+G13>0,1,H13/365)) ->  | P13: =IF(AND(ISBLANK(B13), ISBLANK(G13)), "", L13*M13*N13*O13) -> 
U16: 4. Number of Rooms: (for hotels only) Enter the number of rooms rented at the hotel in column F
U19: 4. Enter data for ONE Option for Hotels/Houses:
V20: 4.1 Option 1- Nights and Rooms: Enter the number of rooms rented at the hotel in column F. Enter the number of rooms in column G.
V23: 4.2 Second Option- Total Nights: Enter the total number of nights into Column H
V26: Housing Type Key

Sheet 6-Commercial Air Travel
B2: Click for Checklist | F2: Required field | H2: Input not required
B4: ='1-Production Info'!C9& " Commercial Air Travel" -> Commercial Air Travel | T4: Instructions
B6: Comments | U6: 1. General Commercial Air Travel Information: Enter comments about commercial air travel for your production (optional)
M8: Status: | N8: =IF(ISERROR(S12),"Data Input Error",IF(S12<>SUM(S13:S14),"Multiple Options Entered",IF(S12>0,"Data Entered Correctly","Data Not Entered"))) -> Data Not Entered | U8: 2. Enter data for ONE Option for Commercial Air Travel Information:
B9: Enter the information for ONE option for air travel. Departure and arrival locations are optional. | V9: 2.1 Preferred Option- Flights by Route:
B10: PREFERRED OPTION | G10: Second Option | I10: Third Option | K10: Option Selected | M10: Commercial Flight Calculations | R10: Emission Summary | V10: If known, enter the departure and arrival airport information into columns B and C, respectively Enter the total number of individual one-way trips for all people flown on this leg in column D. A round trip is equal to two trips. For example, if 5 cast members travel round trip from LAX to JFK 3 times, the number of trips equals 30 (5 x 2 x 3). Multiple trips on the same route can be entered on separate rows, as long as the number of trips is correct. Enter the one way flight distance of the route in column E and select the associated units from column F (e.g., LAX to JFK = 2500 land miles)
B11: Departure Airport Code/City (if known) | C11: Arrival Airport Code/City (if known) | D11: # of Trips on this Route (Total the number of individual one-way trips for all people. Round-trip = 2 trips) | E11: One Way Flight Distance | F11: Flight Distance Units | G11: Total Commerical Flight Distance | H11: Flight Distance Units | M11: Total Distance (miles) | N11: Trip Classification | O11: EF (kgCO2/passenger mile) | P11: CO2 emissions (kg) | R11: Emissions | S11: kg CO2
K12: =IF(AND(D12>0,I12>0),"Multiple Values!",IF(AND(G12>0,I12>0),"Multiple Values!",IF(AND(D12>0,G12>0),"Multiple Values!",IF(D12>0,"Preferred Option",IF(G12>0,"2nd Option",IF(I12>0,"Option 3","")))))) ->  | M12: =IF(E12>0,(VLOOKUP(F12,FlightDistanceConversion,2,FALSE)*E12*D12),IF(G12>0,(VLOOKUP(H12,FlightDistanceConversion,2,FALSE)*G12),"")) ->  | N12: =IF(K12="Multiple Values!", "Mult Values",IF(E12>0,IF(E12<ShortMax,"Short",IF(E12<MedMax,"Medium","Long")),IF(G12>0,"Average",""))) ->  | O12: =IF(K12<>"",VLOOKUP(N12, CommAirFactors, 2, FALSE),"") ->  | P12: =IF(K12<>"",M12*O12,"") ->  | R12: Total | S12: =SUM(P:P) -> 0
M13: =IF(E13>0,(VLOOKUP(F13,FlightDistanceConversion,2,FALSE)*E13*D13),IF(G13>0,(VLOOKUP(H13,DistanceConvert,2,FALSE)*G13),"")) ->  | P13: =IF(K13<>"",M13*O13,"") ->  | R13: Preferred Option (flight type) | S13: =SUMIF(E:E, ">0",P:P ) -> 0
R14: 2nd Option (total miles) | S14: =SUMIF(G:G, ">0",P:P ) -> 0
V18: Multiple trips on the same route can be entered on separate rows, as long as the number of trips is correct. Webflier's flight distance calculator can be found at:
V21: http://www.webflyer.com/travel/mileage_calculator/
V22: 2.2 Second Option- Total Flight Distance: Enter the total commercial flight distance (in passenger miles) for the production into column G and the associated units into column H. (If more than one person is on the same flight, the total passenger miles would be the distance traveled by passenger one plus the distance traveled by passenger two)
K44: =IF(AND(D44>0,I44>0),"Multiple Values!",IF(AND(G44>0,I44>0),"Multiple Values!",IF(AND(D44>0,G44>0),"Multiple Values!",IF(D44>0,"Preferred Option",IF(G44>0,"2nd Option",IF(I44>0,"Option 3","")))))) ->  | M44: =IF(E44>0,(VLOOKUP(F44,FlightDistanceConversion,2,FALSE)*E44*D44),IF(G44>0,(VLOOKUP(H44,DistanceConvert,2,FALSE)*G44),"")) ->  | N44: =IF(K44="Multiple Values!", "Mult Values",IF(E44>0,IF(E44<ShortMax,"Short",IF(E44<MedMax,"Medium","Long")),IF(G44>0,"Average",""))) ->  | O44: =IF(K44<>"",VLOOKUP(N44, CommAirFactors, 2, FALSE),"") -> 

Sheet 7-Charter and Heli Flights
B2: Click for Checklist | F2: Required field | H2: Input not required
B4: ='1-Production Info'!C9& " Charter & Helicopter Flights" -> Charter & Helicopter Flights | T4: Instructions
B6: Comments | K6: Status: | L6: =IF(ISERROR(S12),"Data Input Error",IF(S12<>SUM(S13:S15),"Multiple Options Entered",IF(S12>0,"Data Entered Correctly","Data Not Entered"))) -> Data Not Entered | U6: 1. General Charter and Helicopter Flight Information: Enter comments about charter and helicopter air travel for your production (optional)
U8: 2. Plane Information: Select the plane type from the dropdown list in column B (required) and enter the plane model in column C (optional)
B9: Select the plane type. Model type is optional. | D9: Enter all information for ONE option
B10: Plane Type | C10: Model (if known) | D10: PREFERRED OPTION | F10: Second Option | G10: Third Option | I10: Option Selected | K10: Charter Flight Calculations | R10: Emission Summary | U10: 3. Enter data for ONE Option for Chartered and Helicopter Flights:
D11: Fuel Use Amount | E11: Fuel Use Units | F11: Total Hours Flown | G11: Total Distance Flown | H11: Flight Units | K11: Standard Fuel Use (gal) | L11: Fuel EF (kg/gallon) | M11: Fuel Use - Hours Est. (gal) | N11: Standard Distance (miles) | O11: Distance Fuel Use (gal) | P11: CO2 emissions (kg) | R11: Emissions | S11: kg CO2 | V11: 3.1 Preferred Option- Actual Fuel Use: Enter the actual fuel used for the plane type selected in column D and select the associated units (e.g., gallons) from the dropdown list in column E
I12: =IF(AND(D12>0,F12>0),"Multiple Values!",IF(AND(G12>0,F12>0),"Multiple Values!",IF(AND(D12>0,G12>0),"Multiple Values!",IF(D12>0,"Preferred Option",IF(G12>0,"Third Option",IF(F12>0,"Second Option","")))))) ->  | K12: =IF(ISBLANK(D12), "", VLOOKUP(E12, FuelUnitsConvert, 2, FALSE)*D12) ->  | L12: =IF(ISBLANK(B12), "", VLOOKUP(VLOOKUP(B12,AirFactors,2,FALSE),FuelFactors,2,FALSE)) ->  | M12: =IF(F12>0, VLOOKUP(B12, AirFactors, 3, FALSE)*F12, "") ->  | N12: =IF(G12>0, VLOOKUP(H12, FlightDistanceConversion, 2, FALSE)*G12, "") ->  | O12: =IF(G12>0, N12/VLOOKUP(B12, AirFactors, 4, FALSE), "") ->  | P12: =IF((D12+F12+G12)=0,"",IF(D12>0,K12,IF(F12>0,M12,IF(G12>0,O12,"")))*L12) ->  | R12: Total | S12: =SUM(P:P) -> 0 | V12: 3.2 Second Option- Hours Flown: Enter the total hours flown by the selected plane type in column F
I13: =IF(AND(D13>0,F13>0),"Multiple Values!",IF(AND(G13>0,F13>0),"Multiple Values!",IF(AND(D13>0,G13>0),"Multiple Values!",IF(D13>0,"Preferred Option",IF(G13>0,"Third Option",IF(F13>0,"Second Option","")))))) ->  | K13: =IF(ISBLANK(D13), "", VLOOKUP(E13, FuelUnitsConvert, 2, FALSE)*D13) ->  | L13: =IF(ISBLANK(B13), "", VLOOKUP(VLOOKUP(B13,AirFactors,2,FALSE),FuelFactors,2,FALSE)) ->  | M13: =IF(F13>0, VLOOKUP(B13, AirFactors, 3, FALSE)*F13, "") ->  | O13: =IF(G13>0, N13/VLOOKUP(B13, AirFactors, 4, FALSE), "") ->  | P13: =IF((D13+F13+G13)=0,"",IF(D13>0,K13,IF(F13>0,M13,IF(G13>0,O13,"")))*L13) ->  | R13: Preferred Option (fuel use) | S13: =SUMIF(D:D, ">0",P:P ) -> 0
R14: 2nd Option (hours flown) | S14: =SUMIF(M:M, ">0",P:P ) -> 0 | V14: 3.3 Third Option- Distance: Enter the total distance flown by the selected plane type in column G and select the associated units (e.g. miles) from the dropdown list in column H
R15: 3rd Option (disntance flown) | S15: =SUMIF(O:O, ">0",P:P ) -> 0
U20: Plane Type Key

Sheet 8-Practices & Procurement
B2: Click for Checklist
B4: ='1-Production Info'!C9& " Practices & Procurement" -> Practices & Procurement | I4: Instructions
B6: Waste Practices | F6: What other "green" practices did you implement? | J6: 1. Waste Practice Information: Enter waste amount or cost information (such as 3 and 40 yards bins used or purchased), total amount of trash generated, recycled, and sent to landfills in column C. Select the appropriate units from column C for total trash, waste recycled, and trash sent to landfills from the dropdown list in column D
B7: Waste Information | C7: Amount or Cost | D7: Units
B8: Number of 3-yard bins | D8: bins
B9: 3-yard bins cost | D9: US $
B10: Number of 40-yard bins | D10: bins
B11: 40-yard bin cost | D11: US $
B12: Total trash generated (sum of landfill, recycled and composted trash) | D12: pounds | F12: Comments | J12: 2. Procurement Information: Specify the bulk products purchased by the production.
B14: Total waste recycled | D14: metric tons | K14: Select the product type (e.g., wood or paper) from column B
B15: Total trash sent to landfills | K15: Select the type (e.g, Recycled White Paper) from the dropdown or enter a new type into column C
B17: Please specify the bulk products purchased by the production, and their amounts | K17: Enter the quantity of the selected product purchased in column D and the associated units into column E If available, enter the cost of the product in US dollars in column F
B18: Product | C18: Type | D18: Quantity | E18: Units | F18: Cost (US$) (if known) | G18: Comments (optional)
K19: Enter any comments for the specific product in column G (optional)

Sheet Results
C2: ="Carbon Footprint of "&'1-Production Info'!C9 -> Carbon Footprint of
D4: Emission Source | E4: Metric Tons CO2 | F4: Percent Contribution
D5: Electricity | E5: =IF(ISERROR('2-Electricity'!U14/1000), "Data Error", ('2-Electricity'!U14/1000)) -> 0 | F5: =IF(AND(ISNUMBER($E$10), $E$10>0), E5/$E$10, "") -> 
D6: Natural Gas & Heating Oil | E6: =IF(ISERROR('3-Nat Gas & Heating Oil'!X12/1000), "Data Error", '3-Nat Gas & Heating Oil'!X12/1000) -> 0 | F6: =IF(AND(ISNUMBER($E$10), $E$10>0), E6/$E$10, "") -> 
D7: Fuel Use | E7: =IF(ISERROR('4-Fuel'!V13/1000), "Data Error", ('4-Fuel'!V13/1000)) -> 0 | F7: =IF(AND(ISNUMBER($E$10), $E$10>0), E7/$E$10, "") -> 
D8: Air Travel | E8: =IF(OR(ISERROR('6-Commercial Air Travel'!S12), ISERROR('7-Charter and Heli Flights'!S12)), "Data Error", ('6-Commercial Air Travel'!S12+'7-Charter and Heli Flights'!S12)/1000) -> 0 | F8: =IF(AND(ISNUMBER($E$10), $E$10>0), E8/$E$10, "") -> 
D9: Hotels-Housing | E9: =IF(ISERROR('5-Hotels-Housing'!S12/1000), "Data Error", ('5-Hotels-Housing'!S12/1000)) -> 0 | F9: =IF(AND(ISNUMBER($E$10), $E$10>0), E9/$E$10, "") -> 
D10: Total | E10: =IF(OR(E5="Data Error", E6="Data Error", E7="Data Error", E8="Data Error", E9="Data Error"), "Data Error",SUM(E5:E9)) -> 0 | F10: =IF(AND(ISNUMBER($E$10), E15>0), E10/$E$10, "") -> 
C13: CO2 Emissions from this
C14: production are equivalent to*:
C16: Annual energy use from
C17: =IF(ISERROR(E10*homesperMTCO2),"", E10*homesperMTCO2) -> 0 | D17: homes
C19: Annual emissions from
C20: =IF(ISERROR(E10*vehiclesperMTCO2), "", E10*vehiclesperMTCO2) -> 0 | D20: vehicles
C22: =IF(ISERROR(E10*treesperMTCO2), "", ROUND(E10*treesperMTCO2, -1)) -> 0 | D22: trees
D23: grown for 10 years
C25: =IF(ISERROR(E10*gallonsperMTCO2), "", ROUND(E10*gallonsperMTCO2,-1)) -> 0 | D25: gallons
D26: of gasoline
C45: *Based on EPA Greenhouse Gas Equivalencies Calculator: http://www.epa.gov/cleanenergy/energy-resources/calculator.html

Sheet Sheet1 (hidden)

Sheet Lookups (hidden)
A1: Area_Units | B1: AreaConvert | C1: HeatFuel | D1: NG_Units | E1: NGConvert | F1: FO_Units | G1: FOConvert | H1: Equipment | I1: EquipmentType | J1: Reason | K1: Fuel_Units | L1: FuelUnitsConvert | M1: VehicleFuels | N1: EquipmentFuels | O1: Countries | P1: States | Q1: CANProvinces | R1: AusState | S1: FuelOpt3Units | T1: DistanceUnits | U1: DistanceConvert | V1: FlightDistanceUnits | W1: FlightDistanceConversion | X1: FlightClass | Y1: PlaneTypes | Z1: RoomTypes | AA1: WasteUnits | AB1: Procurement | AC1: WoodTypes | AD1: PaperTypes | AE1: Water Types | AF1: PaintTypes | AG1: PaperUnits | AH1: VolUnits | AI1: EventTypes | AJ1: CBECType | AK1: =IF(ISBLANK('1-Production Info'!B17), 1, '1-Production Info'!B17) -> 1
A2: square feet | B2: 1 | C2: Fuel Oil | D2: cubic feet | E2: 1 | F2: gallons | G2: 1 | H2: Cars | I2: Vehicle | J2: Personal | K2: gallons | L2: 1 | M2: Gasoline | N2: Gasoline | O2: USA | P2: AK | Q2: Alberta | R2: New South Wales | S2: miles | T2: miles | U2: 1 | V2: land miles | W2: 1 | X2: First | Y2: Chartered Commercial Jet | Z2: Economy Hotel | AA2: pounds | AB2: Wood | AC2: FSC Certified | AD2: Recycled white | AE2: Bottled water | AF2: Low VOC | AG2: Reams | AH2: Gallons | AI2: On Location | AJ2: Office ....................... | AK2: =IF(ISBLANK('1-Production Info'!B18), 1, '1-Production Info'!B18) -> 1
A3: square meters | B3: 10.7639104 | C3: Natural Gas | D3: cubic meters | E3: 0.28317 | F3: liters | G3: 0.264172052 | H3: Motorcycles | I3: Vehicle | J3: Production | K3: liters | L3: 0.264172052 | M3: Diesel Fuel | N3: Diesel Fuel | O3: Canada | P3: AL | Q3: British Columbia | R3: Australian Capital Teritory | S3: hours | T3: kilometers | U3: 0.621371192 | V3: kilometers | W3: 0.621371192 | X3: Business | Y3: Large Private Jet | Z3: Midscale Hotel | AA3: kilograms | AB3: Paper | AC3: SFI Certified | AD3: Recycled color | AE3: 5 gallon bottles | AF3: No VOC | AG3: Cases | AH3: Liters | AI3: Office | AJ3: Office ....................... | AK3: =IF(ISBLANK('1-Production Info'!B19), 1, '1-Production Info'!B19) -> 1
A4: square yards | B4: 9 | D4: Btu | E4: 1028 | F4: Btu | G4: 138698 | H4: Buses | I4: Vehicle | J4: Rental | K4: std cubic feet | L4: =1/134.71 -> 0.007423353871 | M4: Biodiesel (B100) | N4: Kerosene | O4: United Kingdom | P4: AR | Q4: Manitoba | R4: Victoria | V4: nautical miles | W4: 1.1516 | X4: Economy Plus | Y4: Small Private Jet | Z4: Upscale Hotel | AA4: metric tons | AB4: Paint | AC4: Reclaimed | AD4: Virgin white | AI4: Warehouse | AJ4: Warehouse and Storage ........ | AK4: =IF(ISBLANK('1-Production Info'!B20), 1, '1-Production Info'!B20) -> 1
A5: acres | B5: 43560 | D5: Megajoules | E5: 1.0846 | F5: Megajoules | G5: 146.33 | H5: Vans, Pickups, SUVs | I5: Vehicle | J5: Other | M5: B5 | N5: RFO (Ships) | O5: Australia | P5: AZ | Q5: Labrador | R5: Queensland | X5: Economy | Y5: Helicopter | Z5: Luxury Hotel | AA5: tons | AB5: Ahesives | AC5: Reused | AD5: Virgin color | AI5: Stage(s) | AJ5: Warehouse and Storage ........ | AK5: =IF(ISBLANK('1-Production Info'!B21), 1, '1-Production Info'!B21) -> 1
H6: Trucks (<18 wheel) | I6: Vehicle | K6: Fuel_UnitsPropane | M6: B20 | N6: Propane | O6: Albania | P6: CA | Q6: New Brunswick | R6: South Australia | X6: Unknown | Z6: Apartment/Condo | AB6: Glass | AC6: Recycled | AK6: =IF(ISBLANK('1-Production Info'!B22), 1, '1-Production Info'!B22) -> 1
H7: 18 Wheelers | I7: Vehicle | K7: gallons | L7: =L2 -> 1 | M7: B40 | N7: Fuel Oil | O7: Algeria | P7: CO | Q7: Newfoundland | R7: Western Australia | Z7: Average House | AB7: Styrofoam | AC7: Wood alternative | AK7: =IF(ISBLANK('1-Production Info'!B23), 1, '1-Production Info'!B23) -> 1
H8: All Vehicles | I8: Vehicle | K8: liters | L8: =L3 -> 0.264172052 | M8: B99 | N8: Biodiesel (B100) | O8: Angola | P8: CT | Q8: Nova Scotia | R8: Tasmaian | Z8: Large House | AB8: Other "Green" Purchases | AC8: Other | AK8: =IF(ISBLANK('1-Production Info'!B24), 1, '1-Production Info'!B24) -> 1
H9: Boat | I9: Equipment | K9: kilograms | L9: =1/L15 -> 0.5358458418 | M9: Ethanol (E100) | N9: B5 | O9: Argentina | P9: DC | Q9: Ontario | R9: Northern Territory | AK9: =IF(ISBLANK('1-Production Info'!B25), 1, '1-Production Info'!B25) -> 1
H10: Generator | I10: Equipment | M10: E85 | N10: B20 | O10: Armenia | P10: DE | Q10: Prince Edward Island | AK10: =IF(ISBLANK('1-Production Info'!B26), 1, '1-Production Info'!B26) -> 1
H11: Cooking Equipment | I11: Equipment | M11: LNG | N11: B40 | O11: Australia | P11: FL | Q11: Quebec | AK11: =IF(ISBLANK('1-Production Info'!B27), 1, '1-Production Info'!B27) -> 1
H12: Lift | I12: Equipment | M12: LPG | N12: B99 | O12: Austria | P12: GA | Q12: Saskatchewan | AK12: =IF(ISBLANK('1-Production Info'!B28), 1, '1-Production Info'!B28) -> 1
H13: Other | I13: Equipment | K13: Propkgperm3 | L13: 493 | M13: CNG | N13: E100 | O13: Azerbaijan | P13: HI | Q13: Yukon | AK13: =IF(ISBLANK('1-Production Info'!B29), 1, '1-Production Info'!B29) -> 1
K14: galperm3 | L14: 264.172 | N14: E85 | O14: Bahrain | P14: IA | Q14: Northwest Territories | AK14: =IF(ISBLANK('1-Production Info'!B30), 1, '1-Production Info'!B30) -> 1
K15: Propkgpergal | L15: =L13/L14 -> 1.866208379 | N15: LNG | O15: Bangladesh | P15: ID | Q15: Nunavut | AK15: =IF(ISBLANK('1-Production Info'!B31), 1, '1-Production Info'!B31) -> 1
K16: kg/lt | L16: =L9/L8 -> 2.028397167 | N16: LPG | O16: Belarus | P16: IL | AK16: =IF(ISBLANK('1-Production Info'!B32), 1, '1-Production Info'!B32) -> 1
N17: CNG | O17: Belgium | P17: IN | AK17: =IF(ISBLANK('1-Production Info'!B33), 1, '1-Production Info'!B33) -> 1
O18: Benin | P18: KS | AK18: =IF(ISBLANK('1-Production Info'!B34), 1, '1-Production Info'!B34) -> 1
O19: Bolivia | P19: KY | AK19: =IF(ISBLANK('1-Production Info'!B35), 1, '1-Production Info'!B35) -> 1
O20: Bosnia and Herzegovina | P20: LA | AK20: =IF(ISBLANK('1-Production Info'!B36), 1, '1-Production Info'!B36) -> 1
O21: Botswana | P21: MA | AK21: =IF(ISBLANK('1-Production Info'!B37), 1, '1-Production Info'!B37) -> 1
O22: Brazil | P22: MD | AK22: =IF(ISBLANK('1-Production Info'!B38), 1, '1-Production Info'!B38) -> 1
O23: Brunei Darussalam | P23: ME | AK23: =IF(ISBLANK('1-Production Info'!B39), 1, '1-Production Info'!B39) -> 1
O24: Bulgaria | P24: MI | AK24: =IF(ISBLANK('1-Production Info'!B40), 1, '1-Production Info'!B40) -> 1
O25: Cambodia | P25: MN | AK25: =IF(ISBLANK('1-Production Info'!B41), 1, '1-Production Info'!B41) -> 1
O26: Cameroon | P26: MO | AK26: =IF(ISBLANK('1-Production Info'!B42), 1, '1-Production Info'!B42) -> 1
O27: Canada | P27: MS | AK27: =IF(ISBLANK('1-Production Info'!B43), 1, '1-Production Info'!B43) -> 1
O28: Chile | P28: MT | AK28: =IF(ISBLANK('1-Production Info'!B44), 1, '1-Production Info'!B44) -> 1
O29: China (including Hong Kong) | P29: NC | AK29: =IF(ISBLANK('1-Production Info'!B45), 1, '1-Production Info'!B45) -> 1
O30: Taiwan, China | P30: ND | AK30: =IF(ISBLANK('1-Production Info'!B46), 1, '1-Production Info'!B46) -> 1
O31: Colombia | P31: NE | AK31: =IF(ISBLANK('1-Production Info'!B47), 1, '1-Production Info'!B47) -> 1
O32: Congo | P32: NH | AK32: =IF(ISBLANK('1-Production Info'!B48), 1, '1-Production Info'!B48) -> 1
O33: Costa Rica | P33: NJ | AK33: =IF(ISBLANK('1-Production Info'!B49), 1, '1-Production Info'!B49) -> 1
O34: Côte d'Ivoire | P34: NM | AK34: =IF(ISBLANK('1-Production Info'!B50), 1, '1-Production Info'!B50) -> 1
O35: Croatia | P35: NV | AK35: =IF(ISBLANK('1-Production Info'!B51), 1, '1-Production Info'!B51) -> 1
O36: Cuba | P36: NY | AK36: =IF(ISBLANK('1-Production Info'!B52), 1, '1-Production Info'!B52) -> 1
O37: Cyprus | P37: OH | AK37: =IF(ISBLANK('1-Production Info'!B53), 1, '1-Production Info'!B53) -> 1
O38: Czech Republic | P38: OK | AK38: =IF(ISBLANK('1-Production Info'!B54), 1, '1-Production Info'!B54) -> 1
O39: Dem. People's Republic of Korea | P39: OR | AK39: =IF(ISBLANK('1-Production Info'!B55), 1, '1-Production Info'!B55) -> 1
O40: Democratic Republic of Congo | P40: PA
O41: Denmark | P41: Puerto Rico
O42: Dominican Republic | P42: RI
O43: Ecuador | P43: SC
O44: Egypt | P44: SD
O45: El Salvador | P45: TN
O46: Eritrea | P46: TX
O47: Estonia | P47: UT
O48: Ethiopia | P48: VA
O49: Finland | P49: VT
O50: France | P50: WA
O51: FYR of Macedonia | P51: WI
O52: Gabon | P52: WV
O53: Georgia | P53: WY
O54: Germany
O55: Ghana
O56: Gibraltar | Q56: *Note: make sure lists match named ranges and the all of the country names correspond to the list of countried on the ElectricityEFs page
O57: Greece
O58: Guatemala
O59: Haiti
O60: Honduras
O61: Hong Kong, China
O62: Hungary
O63: Iceland
O64: India
O65: Indonesia
O66: Iraq
O67: Ireland
O68: Islamic Republic of Iran
O69: Israel
O70: Italy
O71: Jamaica
O72: Japan
O73: Jordan
O74: Kazakhstan
O75: Kenya
O76: Korea
O77: Kuwait
O78: Kyrgyzstan
O79: Latvia
O80: Lebanon
O81: Libyan Arab Jamahiriya
O82: Lithuania
O83: Luxembourg
O84: Malaysia
O85: Malta
O86: Mexico
O87: Middle East
O88: Mongolia
O89: Morocco
O90: Mozambique
O91: Myanmar
O92: Namibia
O93: Nepal
O94: Netherlands
O95: Netherlands Antilles
O96: New Zealand
O97: Nicaragua
O98: Nigeria
O99: Norway
O100: Oman
O101: Other Africa
O102: Other Asia
O103: Other Latin America
O104: Pakistan
O105: Panama
O106: Paraguay
O107: China (mainland)
O108: Peru
O109: Philippines
O110: Poland
O111: Portugal
O112: Qatar
O113: Republic of Moldova
O114: Romania
O115: Russian Federation
O116: Saudi Arabia
O117: Senegal
O118: Serbia
O119: Singapore
O120: Slovak Republic
O121: Slovenia
O122: South Africa
O123: Spain
O124: Sri Lanka
O125: Sudan
O126: Sweden
O127: Switzerland
O128: Syrian Arab Republic
O129: Tajikistan
O130: Thailand
O131: Togo
O132: Trinidad and Tobago
O133: Tunisia
O134: Turkey
O135: Turkmenistan
O136: Ukraine
O137: United Arab Emirates
O138: United Kingdom
O139: United Republic of Tanzania
O140: United States
O141: Uruguay
O142: Uzbekistan
O143: Venezuela
O144: Vietnam
O145: Yemen
O146: Zambia
O147: Zimbabwe

Sheet ElectricityEFs (hidden)
A1: ElectricityCode | B1: Country | C1: State/Province | D1: lb/MWh | E1: kg CO2 per kWh | F1: Reference | N1: http://www.eia.doe.gov/cneaf/electricity/epa/epat7p4.html#_ftn1
A2: Albania | B2: Albania | E2: 0.0111746 | F2: Greenhouse Gas Protocol Initiative, Emission Factors from Cross-sector Tools, Versions 1.3, August 2012. “Electricity Other Countries” worksheet
A3: Algeria | B3: Algeria | E3: 0.5759669 | F3: Greenhouse Gas Protocol Initiative, Emission Factors from Cross-sector Tools, Versions 1.3, August 2012. “Electricity Other Countries” worksheet
A4: Angola | B4: Angola | E4: 0.2374497 | F4: Greenhouse Gas Protocol Initiative, Emission Factors from Cross-sector Tools, Versions 1.3, August 2012. “Electricity Other Countries” worksheet
A5: Argentina | B5: Argentina | E5: 0.3553111 | F5: Greenhouse Gas Protocol Initiative, Emission Factors from Cross-sector Tools, Versions 1.3, August 2012. “Electricity Other Countries” worksheet
A6: Armenia | B6: Armenia | E6: 0.108001 | F6: Greenhouse Gas Protocol Initiative, Emission Factors from Cross-sector Tools, Versions 1.3, August 2012. “Electricity Other Countries” worksheet
A7: Australia | B7: Australia | E7: 0.852931 | F7: Greenhouse Gas Protocol Initiative, Emission Factors from Cross-sector Tools, Versions 1.3, August 2012. “Electricity Other Countries” worksheet
A8: Austria | B8: Austria | E8: 0.163232 | F8: Greenhouse Gas Protocol Initiative, Emission Factors from Cross-sector Tools, Versions 1.3, August 2012. “Electricity Other Countries” worksheet
A9: Azerbaijan | B9: Azerbaijan | E9: 0.4434248 | F9: Greenhouse Gas Protocol Initiative, Emission Factors from Cross-sector Tools, Versions 1.3, August 2012. “Electricity Other Countries” worksheet
A10: Bahrain | B10: Bahrain | E10: 0.6648702 | F10: Greenhouse Gas Protocol Initiative, Emission Factors from Cross-sector Tools, Versions 1.3, August 2012. “Electricity Other Countries” worksheet
A11: Bangladesh | B11: Bangladesh | E11: 0.5852873 | F11: Greenhouse Gas Protocol Initiative, Emission Factors from Cross-sector Tools, Versions 1.3, August 2012. “Electricity Other Countries” worksheet
A12: Belarus | B12: Belarus | E12: 0.3023302 | F12: Greenhouse Gas Protocol Initiative, Emission Factors from Cross-sector Tools, Versions 1.3, August 2012. “Electricity Other Countries” worksheet
A13: Belgium | B13: Belgium | E13: 0.217893 | F13: Greenhouse Gas Protocol Initiative, Emission Factors from Cross-sector Tools, Versions 1.3, August 2012. “Electricity Other Countries” worksheet
A14: Benin | B14: Benin | E14: 0.7250079 | F14: Greenhouse Gas Protocol Initiative, Emission Factors from Cross-sector Tools, Versions 1.3, August 2012. “Electricity Other Countries” worksheet
A15: Bolivia | B15: Bolivia | E15: 0.3933051 | F15: Greenhouse Gas Protocol Initiative, Emission Factors from Cross-sector Tools, Versions 1.3, August 2012. “Electricity Other Countries” worksheet
A16: Bosnia and Herzegovina | B16: Bosnia and Herzegovina | E16: 0.7759654 | F16: Greenhouse Gas Protocol Initiative, Emission Factors from Cross-sector Tools, Versions 1.3, August 2012. “Electricity Other Countries” worksheet
A17: Botswana | B17: Botswana | E17: 2.0632523 | F17: Greenhouse Gas Protocol Initiative, Emission Factors from Cross-sector Tools, Versions 1.3, August 2012. “Electricity Other Countries” worksheet
A18: Brazil | B18: Brazil | E18: 0.0641278 | F18: Greenhouse Gas Protocol Initiative, Emission Factors from Cross-sector Tools, Versions 1.3, August 2012. “Electricity Other Countries” worksheet
A19: Brunei Darussalam | B19: Brunei Darussalam | E19: 0.7552254 | F19: Greenhouse Gas Protocol Initiative, Emission Factors from Cross-sector Tools, Versions 1.3, August 2012. “Electricity Other Countries” worksheet
A20: Bulgaria | B20: Bulgaria | E20: 0.4634469 | F20: Greenhouse Gas Protocol Initiative, Emission Factors from Cross-sector Tools, Versions 1.3, August 2012. “Electricity Other Countries” worksheet
A21: Cambodia | B21: Cambodia | E21: 1.1509245 | F21: Greenhouse Gas Protocol Initiative, Emission Factors from Cross-sector Tools, Versions 1.3, August 2012. “Electricity Other Countries” worksheet
A22: Cameroon | B22: Cameroon | E22: 0.2426807 | F22: Greenhouse Gas Protocol Initiative, Emission Factors from Cross-sector Tools, Versions 1.3, August 2012. “Electricity Other Countries” worksheet
A23: Canada | B23: Canada | E23: 0.167232 | F23: Greenhouse Gas Protocol Initiative, Emission Factors from Cross-sector Tools, Versions 1.3, August 2012. “Electricity Other Countries” worksheet
A24: Chile | B24: Chile | E24: 0.37282 | F24: Greenhouse Gas Protocol Initiative, Emission Factors from Cross-sector Tools, Versions 1.3, August 2012. “Electricity Other Countries” worksheet
A25: China (including Hong Kong) | B25: China (including Hong Kong)-IEA | E25: 0.7427455 | F25: Greenhouse Gas Protocol Initiative, Emission Factors from Cross-sector Tools, Versions 1.3, August 2012. “Electricity Other Countries” worksheet
A26: Taiwan, China | B26: Taiwan, China | E26: 0.6347819 | F26: Greenhouse Gas Protocol Initiative, Emission Factors from Cross-sector Tools, Versions 1.3, August 2012. “Electricity Other Countries” worksheet
A27: Colombia | B27: Colombia | E27: 0.1752714 | F27: Greenhouse Gas Protocol Initiative, Emission Factors from Cross-sector Tools, Versions 1.3, August 2012. “Electricity Other Countries” worksheet
A28: Congo | B28: Congo | E28: 0.2068295 | F28: Greenhouse Gas Protocol Initiative, Emission Factors from Cross-sector Tools, Versions 1.3, August 2012. “Electricity Other Countries” worksheet
A29: Costa Rica | B29: Costa Rica | E29: 0.0398111 | F29: Greenhouse Gas Protocol Initiative, Emission Factors from Cross-sector Tools, Versions 1.3, August 2012. “Electricity Other Countries” worksheet
A30: Côte d'Ivoire | B30: Côte d'Ivoire | E30: 0.4263982 | F30: Greenhouse Gas Protocol Initiative, Emission Factors from Cross-sector Tools, Versions 1.3, August 2012. “Electricity Other Countries” worksheet
A31: Croatia | B31: Croatia | E31: 0.2833877 | F31: Greenhouse Gas Protocol Initiative, Emission Factors from Cross-sector Tools, Versions 1.3, August 2012. “Electricity Other Countries” worksheet
A32: Cuba | B32: Cuba | E32: 0.7515392 | F32: Greenhouse Gas Protocol Initiative, Emission Factors from Cross-sector Tools, Versions 1.3, August 2012. “Electricity Other Countries” worksheet
A33: Cyprus | B33: Cyprus | E33: 0.7442724 | F33: Greenhouse Gas Protocol Initiative, Emission Factors from Cross-sector Tools, Versions 1.3, August 2012. “Electricity Other Countries” worksheet
A34: Czech Republic | B34: Czech Republic | E34: 0.514253 | F34: Greenhouse Gas Protocol Initiative, Emission Factors from Cross-sector Tools, Versions 1.3, August 2012. “Electricity Other Countries” worksheet
A35: Dem. People's Republic of Korea | B35: Dem. People's Republic of Korea | E35: 0.4988643 | F35: Greenhouse Gas Protocol Initiative, Emission Factors from Cross-sector Tools, Versions 1.3, August 2012. “Electricity Other Countries” worksheet
A36: Democratic Republic of Congo | B36: Democratic Republic of Congo | E36: 0.0029338 | F36: Greenhouse Gas Protocol Initiative, Emission Factors from Cross-sector Tools, Versions 1.3, August 2012. “Electricity Other Countries” worksheet
A37: Denmark | B37: Denmark | E37: 0.302749 | F37: Greenhouse Gas Protocol Initiative, Emission Factors from Cross-sector Tools, Versions 1.3, August 2012. “Electricity Other Countries” worksheet
A38: Dominican Republic | B38: Dominican Republic | E38: 0.5905356 | F38: Greenhouse Gas Protocol Initiative, Emission Factors from Cross-sector Tools, Versions 1.3, August 2012. “Electricity Other Countries” worksheet
A39: Ecuador | B39: Ecuador | E39: 0.2896443 | F39: Greenhouse Gas Protocol Initiative, Emission Factors from Cross-sector Tools, Versions 1.3, August 2012. “Electricity Other Countries” worksheet
A40: Egypt | B40: Egypt | E40: 0.4655347 | F40: Greenhouse Gas Protocol Initiative, Emission Factors from Cross-sector Tools, Versions 1.3, August 2012. “Electricity Other Countries” worksheet
A41: El Salvador | B41: El Salvador | E41: 0.3187825 | F41: Greenhouse Gas Protocol Initiative, Emission Factors from Cross-sector Tools, Versions 1.3, August 2012. “Electricity Other Countries” worksheet
A42: Eritrea | B42: Eritrea | E42: 0.6715864 | F42: Greenhouse Gas Protocol Initiative, Emission Factors from Cross-sector Tools, Versions 1.3, August 2012. “Electricity Other Countries” worksheet
A43: Estonia | B43: Estonia | E43: 0.703853 | F43: Greenhouse Gas Protocol Initiative, Emission Factors from Cross-sector Tools, Versions 1.3, August 2012. “Electricity Other Countries” worksheet
A44: Ethiopia | B44: Ethiopia | E44: 0.1183091 | F44: Greenhouse Gas Protocol Initiative, Emission Factors from Cross-sector Tools, Versions 1.3, August 2012. “Electricity Other Countries” worksheet
A45: Finland | B45: Finland | E45: 0.205405 | F45: Greenhouse Gas Protocol Initiative, Emission Factors from Cross-sector Tools, Versions 1.3, August 2012. “Electricity Other Countries” worksheet
A46: France | B46: France | E46: 0.089851 | F46: Greenhouse Gas Protocol Initiative, Emission Factors from Cross-sector Tools, Versions 1.3, August 2012. “Electricity Other Countries” worksheet
A47: FYR of Macedonia | B47: FYR of Macedonia | E47: 0.7099036 | F47: Greenhouse Gas Protocol Initiative, Emission Factors from Cross-sector Tools, Versions 1.3, August 2012. “Electricity Other Countries” worksheet
A48: Gabon | B48: Gabon | E48: 0.3221375 | F48: Greenhouse Gas Protocol Initiative, Emission Factors from Cross-sector Tools, Versions 1.3, August 2012. “Electricity Other Countries” worksheet
A49: Georgia | B49: Georgia | E49: 0.128642 | F49: Greenhouse Gas Protocol Initiative, Emission Factors from Cross-sector Tools, Versions 1.3, August 2012. “Electricity Other Countries” worksheet
A50: Germany | B50: Germany | E50: 0.430496 | F50: Greenhouse Gas Protocol Initiative, Emission Factors from Cross-sector Tools, Versions 1.3, August 2012. “Electricity Other Countries” worksheet
A51: Ghana | B51: Ghana | E51: 0.1865319 | F51: Greenhouse Gas Protocol Initiative, Emission Factors from Cross-sector Tools, Versions 1.3, August 2012. “Electricity Other Countries” worksheet
A52: Gibraltar | B52: Gibraltar | E52: 0.7395172 | F52: Greenhouse Gas Protocol Initiative, Emission Factors from Cross-sector Tools, Versions 1.3, August 2012. “Electricity Other Countries” worksheet
A53: Greece | B53: Greece | E53: 0.722399 | F53: Greenhouse Gas Protocol Initiative, Emission Factors from Cross-sector Tools, Versions 1.3, August 2012. “Electricity Other Countries” worksheet
A54: Guatemala | B54: Guatemala | E54: 0.349108 | F54: Greenhouse Gas Protocol Initiative, Emission Factors from Cross-sector Tools, Versions 1.3, August 2012. “Electricity Other Countries” worksheet
A55: Haiti | B55: Haiti | E55: 0.5471248 | F55: Greenhouse Gas Protocol Initiative, Emission Factors from Cross-sector Tools, Versions 1.3, August 2012. “Electricity Other Countries” worksheet
A56: Honduras | B56: Honduras | E56: 0.344323 | F56: Greenhouse Gas Protocol Initiative, Emission Factors from Cross-sector Tools, Versions 1.3, August 2012. “Electricity Other Countries” worksheet
A57: Hong Kong, China | B57: Hong Kong, China | E57: 0.7629724 | F57: Greenhouse Gas Protocol Initiative, Emission Factors from Cross-sector Tools, Versions 1.3, August 2012. “Electricity Other Countries” worksheet
A58: Hungary | B58: Hungary | E58: 0.30206 | F58: Greenhouse Gas Protocol Initiative, Emission Factors from Cross-sector Tools, Versions 1.3, August 2012. “Electricity Other Countries” worksheet
A59: Iceland | B59: Iceland | E59: 0.000424 | F59: Greenhouse Gas Protocol Initiative, Emission Factors from Cross-sector Tools, Versions 1.3, August 2012. “Electricity Other Countries” worksheet
A60: India | B60: India | E60: 0.9514059 | F60: Greenhouse Gas Protocol Initiative, Emission Factors from Cross-sector Tools, Versions 1.3, August 2012. “Electricity Other Countries” worksheet
A61: Indonesia | B61: Indonesia | E61: 0.7456904 | F61: Greenhouse Gas Protocol Initiative, Emission Factors from Cross-sector Tools, Versions 1.3, August 2012. “Electricity Other Countries” worksheet
A62: Iraq | B62: Iraq | E62: 0.6840861 | F62: Greenhouse Gas Protocol Initiative, Emission Factors from Cross-sector Tools, Versions 1.3, August 2012. “Electricity Other Countries” worksheet
A63: Ireland | B63: Ireland | E63: 0.465239 | F63: Greenhouse Gas Protocol Initiative, Emission Factors from Cross-sector Tools, Versions 1.3, August 2012. “Electricity Other Countries” worksheet
A64: Islamic Republic of Iran | B64: Islamic Republic of Iran | E64: 0.6299627 | F64: Greenhouse Gas Protocol Initiative, Emission Factors from Cross-sector Tools, Versions 1.3, August 2012. “Electricity Other Countries” worksheet
A65: Israel | B65: Israel | E65: 0.694883 | F65: Greenhouse Gas Protocol Initiative, Emission Factors from Cross-sector Tools, Versions 1.3, August 2012. “Electricity Other Countries” worksheet
A66: Italy | B66: Italy | E66: 0.386411 | F66: Greenhouse Gas Protocol Initiative, Emission Factors from Cross-sector Tools, Versions 1.3, August 2012. “Electricity Other Countries” worksheet
A67: Jamaica | B67: Jamaica | E67: 0.5444594 | F67: Greenhouse Gas Protocol Initiative, Emission Factors from Cross-sector Tools, Versions 1.3, August 2012. “Electricity Other Countries” worksheet
A68: Japan | B68: Japan | E68: 0.414709 | F68: Greenhouse Gas Protocol Initiative, Emission Factors from Cross-sector Tools, Versions 1.3, August 2012. “Electricity Other Countries” worksheet
A69: Jordan | B69: Jordan | E69: 0.580548 | F69: Greenhouse Gas Protocol Initiative, Emission Factors from Cross-sector Tools, Versions 1.3, August 2012. “Electricity Other Countries” worksheet
A70: Kazakhstan | B70: Kazakhstan | E70: 0.4800584 | F70: Greenhouse Gas Protocol Initiative, Emission Factors from Cross-sector Tools, Versions 1.3, August 2012. “Electricity Other Countries” worksheet
A71: Kenya | B71: Kenya | E71: 0.3949455 | F71: Greenhouse Gas Protocol Initiative, Emission Factors from Cross-sector Tools, Versions 1.3, August 2012. “Electricity Other Countries” worksheet
A72: Korea | B72: Korea | E72: 0.497699 | F72: Greenhouse Gas Protocol Initiative, Emission Factors from Cross-sector Tools, Versions 1.3, August 2012. “Electricity Other Countries” worksheet
A73: Kuwait | B73: Kuwait | E73: 0.8696052 | F73: Greenhouse Gas Protocol Initiative, Emission Factors from Cross-sector Tools, Versions 1.3, August 2012. “Electricity Other Countries” worksheet
A74: Kyrgyzstan | B74: Kyrgyzstan | E74: 0.0809661 | F74: Greenhouse Gas Protocol Initiative, Emission Factors from Cross-sector Tools, Versions 1.3, August 2012. “Electricity Other Countries” worksheet
A75: Latvia | B75: Latvia | E75: 0.1530742 | F75: Greenhouse Gas Protocol Initiative, Emission Factors from Cross-sector Tools, Versions 1.3, August 2012. “Electricity Other Countries” worksheet
A76: Lebanon | B76: Lebanon | E76: 0.7166724 | F76: Greenhouse Gas Protocol Initiative, Emission Factors from Cross-sector Tools, Versions 1.3, August 2012. “Electricity Other Countries” worksheet
A77: Libyan Arab Jamahiriya | B77: Libyan Arab Jamahiriya | E77: 0.8717842 | F77: Greenhouse Gas Protocol Initiative, Emission Factors from Cross-sector Tools, Versions 1.3, August 2012. “Electricity Other Countries” worksheet
A78: Lithuania | B78: Lithuania | E78: 0.1111529 | F78: Greenhouse Gas Protocol Initiative, Emission Factors from Cross-sector Tools, Versions 1.3, August 2012. “Electricity Other Countries” worksheet
A79: Luxembourg | B79: Luxembourg | E79: 0.384286 | F79: Greenhouse Gas Protocol Initiative, Emission Factors from Cross-sector Tools, Versions 1.3, August 2012. “Electricity Other Countries” worksheet
A80: Malaysia | B80: Malaysia | E80: 0.6486477 | F80: Greenhouse Gas Protocol Initiative, Emission Factors from Cross-sector Tools, Versions 1.3, August 2012. “Electricity Other Countries” worksheet
A81: Malta | B81: Malta | E81: 0.8504153 | F81: Greenhouse Gas Protocol Initiative, Emission Factors from Cross-sector Tools, Versions 1.3, August 2012. “Electricity Other Countries” worksheet
A82: Mexico | B82: Mexico | E82: 0.454983 | F82: Greenhouse Gas Protocol Initiative, Emission Factors from Cross-sector Tools, Versions 1.3, August 2012. “Electricity Other Countries” worksheet
A83: Middle East | B83: Middle East | E83: 0.6902583 | F83: Greenhouse Gas Protocol Initiative, Emission Factors from Cross-sector Tools, Versions 1.3, August 2012. “Electricity Other Countries” worksheet
A84: Mongolia | B84: Mongolia | E84: 0.5353523 | F84: Greenhouse Gas Protocol Initiative, Emission Factors from Cross-sector Tools, Versions 1.3, August 2012. “Electricity Other Countries” worksheet
A85: Morocco | B85: Morocco | E85: 0.6384446 | F85: Greenhouse Gas Protocol Initiative, Emission Factors from Cross-sector Tools, Versions 1.3, August 2012. “Electricity Other Countries” worksheet
A86: Mozambique | B86: Mozambique | E86: 0.0005033 | F86: Greenhouse Gas Protocol Initiative, Emission Factors from Cross-sector Tools, Versions 1.3, August 2012. “Electricity Other Countries” worksheet
A87: Myanmar | B87: Myanmar | E87: 0.1958467 | F87: Greenhouse Gas Protocol Initiative, Emission Factors from Cross-sector Tools, Versions 1.3, August 2012. “Electricity Other Countries” worksheet
A88: Namibia | B88: Namibia | E88: 0.2369013 | F88: Greenhouse Gas Protocol Initiative, Emission Factors from Cross-sector Tools, Versions 1.3, August 2012. “Electricity Other Countries” worksheet
A89: Nepal | B89: Nepal | E89: 0.0043431 | F89: Greenhouse Gas Protocol Initiative, Emission Factors from Cross-sector Tools, Versions 1.3, August 2012. “Electricity Other Countries” worksheet
A90: Netherlands | B90: Netherlands | E90: 0.374485 | F90: Greenhouse Gas Protocol Initiative, Emission Factors from Cross-sector Tools, Versions 1.3, August 2012. “Electricity Other Countries” worksheet
A91: Netherlands Antilles | B91: Netherlands Antilles | E91: 0.7068983 | F91: Greenhouse Gas Protocol Initiative, Emission Factors from Cross-sector Tools, Versions 1.3, August 2012. “Electricity Other Countries” worksheet
A92: New Zealand | B92: New Zealand | E92: 0.166503 | F92: Greenhouse Gas Protocol Initiative, Emission Factors from Cross-sector Tools, Versions 1.3, August 2012. “Electricity Other Countries” worksheet
A93: Nicaragua | B93: Nicaragua | E93: 0.5058123 | F93: Greenhouse Gas Protocol Initiative, Emission Factors from Cross-sector Tools, Versions 1.3, August 2012. “Electricity Other Countries” worksheet
A94: Nigeria | B94: Nigeria | E94: 0.4157342 | F94: Greenhouse Gas Protocol Initiative, Emission Factors from Cross-sector Tools, Versions 1.3, August 2012. “Electricity Other Countries” worksheet
A95: Norway | B95: Norway | E95: 0.017288 | F95: Greenhouse Gas Protocol Initiative, Emission Factors from Cross-sector Tools, Versions 1.3, August 2012. “Electricity Other Countries” worksheet
A96: Oman | B96: Oman | E96: 0.8424879 | F96: Greenhouse Gas Protocol Initiative, Emission Factors from Cross-sector Tools, Versions 1.3, August 2012. “Electricity Other Countries” worksheet
A97: Other Africa | B97: Other Africa | E97: 0.4944978 | F97: Greenhouse Gas Protocol Initiative, Emission Factors from Cross-sector Tools, Versions 1.3, August 2012. “Electricity Other Countries” worksheet
A98: Other Asia | B98: Other Asia | E98: 0.2680725 | F98: Greenhouse Gas Protocol Initiative, Emission Factors from Cross-sector Tools, Versions 1.3, August 2012. “Electricity Other Countries” worksheet
A99: Other Latin America | B99: Other Latin America | E99: 0.2489089 | F99: Greenhouse Gas Protocol Initiative, Emission Factors from Cross-sector Tools, Versions 1.3, August 2012. “Electricity Other Countries” worksheet
A100: Pakistan | B100: Pakistan | E100: 0.4577247 | F100: Greenhouse Gas Protocol Initiative, Emission Factors from Cross-sector Tools, Versions 1.3, August 2012. “Electricity Other Countries” worksheet
A101: Panama | B101: Panama | E101: 0.3021739 | F101: Greenhouse Gas Protocol Initiative, Emission Factors from Cross-sector Tools, Versions 1.3, August 2012. “Electricity Other Countries” worksheet
A102: Paraguay | B102: Paraguay | E102: 0 | F102: Greenhouse Gas Protocol Initiative, Emission Factors from Cross-sector Tools, Versions 1.3, August 2012. “Electricity Other Countries” worksheet
A103: China (mainland) | B103: China (mainland) | E103: 0.7425689 | F103: Greenhouse Gas Protocol Initiative, Emission Factors from Cross-sector Tools, Versions 1.3, August 2012. “Electricity Other Countries” worksheet
A104: Peru | B104: Peru | E104: 0.2363066 | F104: Greenhouse Gas Protocol Initiative, Emission Factors from Cross-sector Tools, Versions 1.3, August 2012. “Electricity Other Countries” worksheet
A105: Philippines | B105: Philippines | E105: 0.4781595 | F105: Greenhouse Gas Protocol Initiative, Emission Factors from Cross-sector Tools, Versions 1.3, August 2012. “Electricity Other Countries” worksheet
A106: Poland | B106: Poland | E106: 0.640198 | F106: Greenhouse Gas Protocol Initiative, Emission Factors from Cross-sector Tools, Versions 1.3, August 2012. “Electricity Other Countries” worksheet
A107: Portugal | B107: Portugal | E107: 0.368238 | F107: Greenhouse Gas Protocol Initiative, Emission Factors from Cross-sector Tools, Versions 1.3, August 2012. “Electricity Other Countries” worksheet
A108: Qatar | B108: Qatar | E108: 0.4940089 | F108: Greenhouse Gas Protocol Initiative, Emission Factors from Cross-sector Tools, Versions 1.3, August 2012. “Electricity Other Countries” worksheet
A109: Republic of Moldova | B109: Republic of Moldova | E109: 0.4000984 | F109: Greenhouse Gas Protocol Initiative, Emission Factors from Cross-sector Tools, Versions 1.3, August 2012. “Electricity Other Countries” worksheet
A110: Romania | B110: Romania | E110: 0.4143538 | F110: Greenhouse Gas Protocol Initiative, Emission Factors from Cross-sector Tools, Versions 1.3, August 2012. “Electricity Other Countries” worksheet
A111: Russian Federation | B111: Russian Federation | E111: 0.317404 | F111: Greenhouse Gas Protocol Initiative, Emission Factors from Cross-sector Tools, Versions 1.3, August 2012. “Electricity Other Countries” worksheet
A112: Saudi Arabia | B112: Saudi Arabia | E112: 0.7572325 | F112: Greenhouse Gas Protocol Initiative, Emission Factors from Cross-sector Tools, Versions 1.3, August 2012. “Electricity Other Countries” worksheet
A113: Senegal | B113: Senegal | E113: 0.6144503 | F113: Greenhouse Gas Protocol Initiative, Emission Factors from Cross-sector Tools, Versions 1.3, August 2012. “Electricity Other Countries” worksheet
A114: Serbia | B114: Serbia | E114: 0.6803266 | F114: Greenhouse Gas Protocol Initiative, Emission Factors from Cross-sector Tools, Versions 1.3, August 2012. “Electricity Other Countries” worksheet
A115: Singapore | B115: Singapore | E115: 0.5188568 | F115: Greenhouse Gas Protocol Initiative, Emission Factors from Cross-sector Tools, Versions 1.3, August 2012. “Electricity Other Countries” worksheet
A116: Slovak Republic | B116: Slovak Republic | E116: 0.221716 | F116: Greenhouse Gas Protocol Initiative, Emission Factors from Cross-sector Tools, Versions 1.3, August 2012. “Electricity Other Countries” worksheet
A117: Slovenia | B117: Slovenia | E117: 0.316025 | F117: Greenhouse Gas Protocol Initiative, Emission Factors from Cross-sector Tools, Versions 1.3, August 2012. “Electricity Other Countries” worksheet
A118: South Africa | B118: South Africa | E118: 0.9259049 | F118: Greenhouse Gas Protocol Initiative, Emission Factors from Cross-sector Tools, Versions 1.3, August 2012. “Electricity Other Countries” worksheet
A119: Spain | B119: Spain | E119: 0.298784 | F119: Greenhouse Gas Protocol Initiative, Emission Factors from Cross-sector Tools, Versions 1.3, August 2012. “Electricity Other Countries” worksheet
A120: Sri Lanka | B120: Sri Lanka | E120: 0.4601088 | F120: Greenhouse Gas Protocol Initiative, Emission Factors from Cross-sector Tools, Versions 1.3, August 2012. “Electricity Other Countries” worksheet
A121: Sudan | B121: Sudan | E121: 0.3555958 | F121: Greenhouse Gas Protocol Initiative, Emission Factors from Cross-sector Tools, Versions 1.3, August 2012. “Electricity Other Countries” worksheet
A122: Sweden | B122: Sweden | E122: 0.043135 | F122: Greenhouse Gas Protocol Initiative, Emission Factors from Cross-sector Tools, Versions 1.3, August 2012. “Electricity Other Countries” worksheet
A123: Switzerland | B123: Switzerland | E123: 0.039934 | F123: Greenhouse Gas Protocol Initiative, Emission Factors from Cross-sector Tools, Versions 1.3, August 2012. “Electricity Other Countries” worksheet
A124: Syrian Arab Republic | B124: Syrian Arab Republic | E124: 0.6408914 | F124: Greenhouse Gas Protocol Initiative, Emission Factors from Cross-sector Tools, Versions 1.3, August 2012. “Electricity Other Countries” worksheet
A125: Tajikistan | B125: Tajikistan | E125: 0.0292264 | F125: Greenhouse Gas Protocol Initiative, Emission Factors from Cross-sector Tools, Versions 1.3, August 2012. “Electricity Other Countries” worksheet
A126: Thailand | B126: Thailand | E126: 0.5133809 | F126: Greenhouse Gas Protocol Initiative, Emission Factors from Cross-sector Tools, Versions 1.3, August 2012. “Electricity Other Countries” worksheet
A127: Togo | B127: Togo | E127: 0.2015714 | F127: Greenhouse Gas Protocol Initiative, Emission Factors from Cross-sector Tools, Versions 1.3, August 2012. “Electricity Other Countries” worksheet
A128: Trinidad and Tobago | B128: Trinidad and Tobago | E128: 0.7188074 | F128: Greenhouse Gas Protocol Initiative, Emission Factors from Cross-sector Tools, Versions 1.3, August 2012. “Electricity Other Countries” worksheet
A129: Tunisia | B129: Tunisia | E129: 0.5380795 | F129: Greenhouse Gas Protocol Initiative, Emission Factors from Cross-sector Tools, Versions 1.3, August 2012. “Electricity Other Countries” worksheet
A130: Turkey | B130: Turkey | E130: 0.479929 | F130: Greenhouse Gas Protocol Initiative, Emission Factors from Cross-sector Tools, Versions 1.3, August 2012. “Electricity Other Countries” worksheet
A131: Turkmenistan | B131: Turkmenistan | E131: 0.7894524 | F131: Greenhouse Gas Protocol Initiative, Emission Factors from Cross-sector Tools, Versions 1.3, August 2012. “Electricity Other Countries” worksheet
A132: Ukraine | B132: Ukraine | E132: 0.373955 | F132: Greenhouse Gas Protocol Initiative, Emission Factors from Cross-sector Tools, Versions 1.3, August 2012. “Electricity Other Countries” worksheet
A133: United Arab Emirates | B133: United Arab Emirates | E133: 0.6312455 | F133: Greenhouse Gas Protocol Initiative, Emission Factors from Cross-sector Tools, Versions 1.3, August 2012. “Electricity Other Countries” worksheet
A134: United Kingdom | B134: United Kingdom | E134: 0.449501 | F134: Greenhouse Gas Protocol Initiative, Emission Factors from Cross-sector Tools, Versions 1.3, August 2012. “Electricity Other Countries” worksheet
A135: United Republic of Tanzania | B135: United Republic of Tanzania | E135: 0.2812221 | F135: Greenhouse Gas Protocol Initiative, Emission Factors from Cross-sector Tools, Versions 1.3, August 2012. “Electricity Other Countries” worksheet
A136: United States | B136: United States | E136: 0.50817 | F136: Greenhouse Gas Protocol Initiative, Emission Factors from Cross-sector Tools, Versions 1.3, August 2012. “Electricity Other Countries” worksheet
A137: Uruguay | B137: Uruguay | E137: 0.2531788 | F137: Greenhouse Gas Protocol Initiative, Emission Factors from Cross-sector Tools, Versions 1.3, August 2012. “Electricity Other Countries” worksheet
A138: Uzbekistan | B138: Uzbekistan | E138: 0.4614759 | F138: Greenhouse Gas Protocol Initiative, Emission Factors from Cross-sector Tools, Versions 1.3, August 2012. “Electricity Other Countries” worksheet
A139: Venezuela | B139: Venezuela | E139: 0.1985978 | F139: Greenhouse Gas Protocol Initiative, Emission Factors from Cross-sector Tools, Versions 1.3, August 2012. “Electricity Other Countries” worksheet
A140: Vietnam | B140: Vietnam | E140: 0.3841034 | F140: Greenhouse Gas Protocol Initiative, Emission Factors from Cross-sector Tools, Versions 1.3, August 2012. “Electricity Other Countries” worksheet
A141: Yemen | B141: Yemen | E141: 0.6304537 | F141: Greenhouse Gas Protocol Initiative, Emission Factors from Cross-sector Tools, Versions 1.3, August 2012. “Electricity Other Countries” worksheet
A142: Zambia | B142: Zambia | E142: 0.0032466 | F142: Greenhouse Gas Protocol Initiative, Emission Factors from Cross-sector Tools, Versions 1.3, August 2012. “Electricity Other Countries” worksheet
A143: Zimbabwe | B143: Zimbabwe | E143: 0.6189509 | F143: Greenhouse Gas Protocol Initiative, Emission Factors from Cross-sector Tools, Versions 1.3, August 2012. “Electricity Other Countries” worksheet
A144: =CONCATENATE(B144,C144) -> Taiwan | B144: Taiwan | E144: 0.612 | F144: Greenhouse Gas Protocol Initiative, Emission Factors from Cross-sector Tools, Versions 1.3, August 2012. “Electricity China and Taiwan” worksheet. [Note: CO2e/kWh].
A145: =CONCATENATE(B145,C145) -> USAAK | B145: USA | C145: AK | D145: 1126.2477 | E145: =D145*0.45359237/1000 -> 0.5108573635 | F145: eGRID2012 Version 1.0, eGRID2012V1_0_year09_DATA.xls, “ST09” worksheet, State annual CO2 output emission rate (lb/MWh)
A146: USAAL | B146: USA | C146: AL | D146: 1040.8062 | E146: =D146*0.45359237/1000 -> 0.472101751 | F146: eGRID2012 Version 1.0, eGRID2012V1_0_year09_DATA.xls, “ST09” worksheet, State annual CO2 output emission rate (lb/MWh)
A147: USAAR | B147: USA | C147: AR | D147: 1112.5946 | E147: 0.5046644215 | F147: eGRID2012 Version 1.0, eGRID2012V1_0_year09_DATA.xls, “ST09” worksheet, State annual CO2 output emission rate (lb/MWh)
A148: USAAZ | B148: USA | C148: AZ | D148: 1084.6279 | E148: 0.4919789397 | F148: eGRID2012 Version 1.0, eGRID2012V1_0_year09_DATA.xls, “ST09” worksheet, State annual CO2 output emission rate (lb/MWh)
A149: USACA | B149: USA | C149: CA | D149: 556.4388 | E149: 0.2523963941 | F149: eGRID2012 Version 1.0, eGRID2012V1_0_year09_DATA.xls, “ST09” worksheet, State annual CO2 output emission rate (lb/MWh)
A150: USACO | B150: USA | C150: CO | D150: 1736.7395 | E150: 0.7877717859 | F150: eGRID2012 Version 1.0, eGRID2012V1_0_year09_DATA.xls, “ST09” worksheet, State annual CO2 output emission rate (lb/MWh)
A151: USACT | B151: USA | C151: CT | D151: 576.7997 | E151: 0.2616319429 | F151: eGRID2012 Version 1.0, eGRID2012V1_0_year09_DATA.xls, “ST09” worksheet, State annual CO2 output emission rate (lb/MWh)
A152: USADC | B152: USA | C152: DC | D152: 2484.6913 | E152: 1.127037015 | F152: eGRID2012 Version 1.0, eGRID2012V1_0_year09_DATA.xls, “ST09” worksheet, State annual CO2 output emission rate (lb/MWh)
A153: USADE | B153: USA | C153: DE | D153: 1795.3275 | E153: 0.8143468557 | F153: eGRID2012 Version 1.0, eGRID2012V1_0_year09_DATA.xls, “ST09” worksheet, State annual CO2 output emission rate (lb/MWh)
A154: USAFL | B154: USA | C154: FL | D154: 1192.1794 | E154: 0.5407634795 | F154: eGRID2012 Version 1.0, eGRID2012V1_0_year09_DATA.xls, “ST09” worksheet, State annual CO2 output emission rate (lb/MWh)
A155: USAGA | B155: USA | C155: GA | D155: 1285.9481 | E155: 0.5832962464 | F155: eGRID2012 Version 1.0, eGRID2012V1_0_year09_DATA.xls, “ST09” worksheet, State annual CO2 output emission rate (lb/MWh)
A156: USAHI | B156: USA | C156: HI | D156: 1527.0773 | E156: 0.6926706117 | F156: eGRID2012 Version 1.0, eGRID2012V1_0_year09_DATA.xls, “ST09” worksheet, State annual CO2 output emission rate (lb/MWh)
A157: USAIA | B157: USA | C157: IA | D157: 1625.2988 | E157: 0.7372231347 | F157: eGRID2012 Version 1.0, eGRID2012V1_0_year09_DATA.xls, “ST09” worksheet, State annual CO2 output emission rate (lb/MWh)
A158: USAID | B158: USA | C158: ID | D158: 119.6862 | E158: 0.05428874711 | F158: eGRID2012 Version 1.0, eGRID2012V1_0_year09_DATA.xls, “ST09” worksheet, State annual CO2 output emission rate (lb/MWh)
A159: USAIL | B159: USA | C159: IL | D159: 1067.8363 | E159: 0.4843623981 | F159: eGRID2012 Version 1.0, eGRID2012V1_0_year09_DATA.xls, “ST09” worksheet, State annual CO2 output emission rate (lb/MWh)
A160: USAIN | B160: USA | C160: IN | D160: 2033.6314 | E160: 0.9224396864 | F160: eGRID2012 Version 1.0, eGRID2012V1_0_year09_DATA.xls, “ST09” worksheet, State annual CO2 output emission rate (lb/MWh)
A161: USAKS | B161: USA | C161: KS | D161: 1673.8714 | E161: 0.7592552954 | F161: eGRID2012 Version 1.0, eGRID2012V1_0_year09_DATA.xls, “ST09” worksheet, State annual CO2 output emission rate (lb/MWh)
A162: USAKY | B162: USA | C162: KY | D162: 2045.7462 | E162: 0.9279348673 | F162: eGRID2012 Version 1.0, eGRID2012V1_0_year09_DATA.xls, “ST09” worksheet, State annual CO2 output emission rate (lb/MWh)
A163: USALA | B163: USA | C163: LA | D163: 1128.269 | E163: 0.5117742097 | F163: eGRID2012 Version 1.0, eGRID2012V1_0_year09_DATA.xls, “ST09” worksheet, State annual CO2 output emission rate (lb/MWh)
A164: USAMA | B164: USA | C164: MA | D164: 1113.803 | E164: 0.5052125425 | F164: eGRID2012 Version 1.0, eGRID2012V1_0_year09_DATA.xls, “ST09” worksheet, State annual CO2 output emission rate (lb/MWh)
A165: USAMD | B165: USA | C165: MD | D165: 1231.9697 | E165: 0.558812056 | F165: eGRID2012 Version 1.0, eGRID2012V1_0_year09_DATA.xls, “ST09” worksheet, State annual CO2 output emission rate (lb/MWh)
A166: USAME | B166: USA | C166: ME | D166: 500.2535 | E166: 0.2269111707 | F166: eGRID2012 Version 1.0, eGRID2012V1_0_year09_DATA.xls, “ST09” worksheet, State annual CO2 output emission rate (lb/MWh)
A167: USAMI | B167: USA | C167: MI | D167: 1524.1292 | E167: 0.691333376 | F167: eGRID2012 Version 1.0, eGRID2012V1_0_year09_DATA.xls, “ST09” worksheet, State annual CO2 output emission rate (lb/MWh)
A168: USAMN | B168: USA | C168: MN | D168: 1396.8336 | E168: 0.6335930631 | F168: eGRID2012 Version 1.0, eGRID2012V1_0_year09_DATA.xls, “ST09” worksheet, State annual CO2 output emission rate (lb/MWh)
A169: USAMO | B169: USA | C169: MO | D169: 1807.5837 | E169: 0.8199061745 | F169: eGRID2012 Version 1.0, eGRID2012V1_0_year09_DATA.xls, “ST09” worksheet, State annual CO2 output emission rate (lb/MWh)
A170: USAMS | B170: USA | C170: MS | D170: 1102.6746 | E170: 0.5001647852 | F170: eGRID2012 Version 1.0, eGRID2012V1_0_year09_DATA.xls, “ST09” worksheet, State annual CO2 output emission rate (lb/MWh)
A171: USAMT | B171: USA | C171: MT | D171: 1438.6679 | E171: 0.6525687824 | F171: eGRID2012 Version 1.0, eGRID2012V1_0_year09_DATA.xls, “ST09” worksheet, State annual CO2 output emission rate (lb/MWh)
A172: USANC | B172: USA | C172: NC | D172: 1156.5443 | E172: 0.52459967 | F172: eGRID2012 Version 1.0, eGRID2012V1_0_year09_DATA.xls, “ST09” worksheet, State annual CO2 output emission rate (lb/MWh)
A173: USAND | B173: USA | C173: ND | D173: 2057.7382 | E173: 0.933374347 | F173: eGRID2012 Version 1.0, eGRID2012V1_0_year09_DATA.xls, “ST09” worksheet, State annual CO2 output emission rate (lb/MWh)
A174: USANE | B174: USA | C174: NE | D174: 1597.6723 | E174: 0.724691965 | F174: eGRID2012 Version 1.0, eGRID2012V1_0_year09_DATA.xls, “ST09” worksheet, State annual CO2 output emission rate (lb/MWh)
A175: USANH | B175: USA | C175: NH | D175: 600.7058 | E175: 0.2724755675 | F175: eGRID2012 Version 1.0, eGRID2012V1_0_year09_DATA.xls, “ST09” worksheet, State annual CO2 output emission rate (lb/MWh)
A176: USANJ | B176: USA | C176: NJ | D176: 549.6076 | E176: 0.2492978139 | F176: eGRID2012 Version 1.0, eGRID2012V1_0_year09_DATA.xls, “ST09” worksheet, State annual CO2 output emission rate (lb/MWh)
A177: USANM | B177: USA | C177: NM | D177: 1821.263 | E177: 0.8261110006 | F177: eGRID2012 Version 1.0, eGRID2012V1_0_year09_DATA.xls, “ST09” worksheet, State annual CO2 output emission rate (lb/MWh)
A178: USANV | B178: USA | C178: NV | D178: 1060.9214 | E178: 0.4812258522 | F178: eGRID2012 Version 1.0, eGRID2012V1_0_year09_DATA.xls, “ST09” worksheet, State annual CO2 output emission rate (lb/MWh)
A179: USANY | B179: USA | C179: NY | D179: 582.8531 | E179: 0.264377719 | F179: eGRID2012 Version 1.0, eGRID2012V1_0_year09_DATA.xls, “ST09” worksheet, State annual CO2 output emission rate (lb/MWh)
A180: USAOH | B180: USA | C180: OH | D180: 1780.8858 | E180: 0.8077962107 | F180: eGRID2012 Version 1.0, eGRID2012V1_0_year09_DATA.xls, “ST09” worksheet, State annual CO2 output emission rate (lb/MWh)
A181: USAOK | B181: USA | C181: OK | D181: 1494.9868 | E181: 0.6781146057 | F181: eGRID2012 Version 1.0, eGRID2012V1_0_year09_DATA.xls, “ST09” worksheet, State annual CO2 output emission rate (lb/MWh)
A182: USAOR | B182: USA | C182: OR | D182: 363.5069 | E182: 0.1648839563 | F182: eGRID2012 Version 1.0, eGRID2012V1_0_year09_DATA.xls, “ST09” worksheet, State annual CO2 output emission rate (lb/MWh)
A183: USAPA | B183: USA | C183: PA | D183: 1140.311 | E183: 0.517236369 | F183: eGRID2012 Version 1.0, eGRID2012V1_0_year09_DATA.xls, “ST09” worksheet, State annual CO2 output emission rate (lb/MWh)
A184: USARI | B184: USA | C184: RI | D184: 895.4978 | E184: 0.4061909694 | F184: eGRID2012 Version 1.0, eGRID2012V1_0_year09_DATA.xls, “ST09” worksheet, State annual CO2 output emission rate (lb/MWh)
A185: USASC | B185: USA | C185: SC | D185: 824.6229 | E185: 0.3740426556 | F185: eGRID2012 Version 1.0, eGRID2012V1_0_year09_DATA.xls, “ST09” worksheet, State annual CO2 output emission rate (lb/MWh)
A186: USASD | B186: USA | C186: SD | D186: 914.3409 | E186: 0.4147380558 | F186: eGRID2012 Version 1.0, eGRID2012V1_0_year09_DATA.xls, “ST09” worksheet, State annual CO2 output emission rate (lb/MWh)
A187: USATN | B187: USA | C187: TN | D187: 1071.5353 | E187: 0.4860402363 | F187: eGRID2012 Version 1.0, eGRID2012V1_0_year09_DATA.xls, “ST09” worksheet, State annual CO2 output emission rate (lb/MWh)
A188: USATX | B188: USA | C188: TX | D188: 1243.1931 | E188: 0.5639029046 | F188: eGRID2012 Version 1.0, eGRID2012V1_0_year09_DATA.xls, “ST09” worksheet, State annual CO2 output emission rate (lb/MWh)
A189: USAUT | B189: USA | C189: UT | D189: 1854.495 | E189: 0.8411847822 | F189: eGRID2012 Version 1.0, eGRID2012V1_0_year09_DATA.xls, “ST09” worksheet, State annual CO2 output emission rate (lb/MWh)
A190: USAVA | B190: USA | C190: VA | D190: 994.3965 | E190: 0.4510506652 | F190: eGRID2012 Version 1.0, eGRID2012V1_0_year09_DATA.xls, “ST09” worksheet, State annual CO2 output emission rate (lb/MWh)
A191: USAVT | B191: USA | C191: VT | D191: 2.1716 | E191: 0.0009850211907 | F191: eGRID2012 Version 1.0, eGRID2012V1_0_year09_DATA.xls, “ST09” worksheet, State annual CO2 output emission rate (lb/MWh)
A192: USAWA | B192: USA | C192: WA | D192: 286.4813 | E192: 0.1299457318 | F192: eGRID2012 Version 1.0, eGRID2012V1_0_year09_DATA.xls, “ST09” worksheet, State annual CO2 output emission rate (lb/MWh)
A193: USAWI | B193: USA | C193: WI | D193: 1514.0902 | E193: 0.6867797622 | F193: eGRID2012 Version 1.0, eGRID2012V1_0_year09_DATA.xls, “ST09” worksheet, State annual CO2 output emission rate (lb/MWh)
A194: USAWV | B194: USA | C194: WV | D194: 2010.5044 | E194: 0.9119494557 | F194: eGRID2012 Version 1.0, eGRID2012V1_0_year09_DATA.xls, “ST09” worksheet, State annual CO2 output emission rate (lb/MWh)
A195: USAWY | B195: USA | C195: WY | D195: 2116.3624 | E195: 0.9599658368 | F195: eGRID2012 Version 1.0, eGRID2012V1_0_year09_DATA.xls, “ST09” worksheet, State annual CO2 output emission rate (lb/MWh)
A196: USAPuerto Rico | B196: USA | C196: Puerto Rico | D196: 1891.57 | E196: 0.8580017193 | F196: The Climate Registry's 2013Default Emission Factors. Table 14.1 US Emission Factors by eGRIDSubregion. "US Territories (not an eGRID Region)" from Department of Energy Guidance on Voluntary Reporting of Greenhouse Gases, Form EIA-1605 (2007), Appendix F,
A197: CanadaAlberta | B197: Canada | C197: Alberta | E197: 0.734 | F197: National Inventory Report, 1990-2011: Greenhouse Gas Sources and Sinks in Canada Part 3, Table A13-10
A198: CanadaBritish Columbia | B198: Canada | C198: British Columbia | E198: 0.0111 | F198: National Inventory Report, 1990-2011: Greenhouse Gas Sources and Sinks in Canada Part 3, Table A13-11
A199: CanadaManitoba | B199: Canada | C199: Manitoba | E199: 0.00328 | F199: National Inventory Report, 1990-2011: Greenhouse Gas Sources and Sinks in Canada Part 3, Table A13-8
A200: CanadaLabrador | B200: Canada | C200: Labrador | E200: 0.0202 | F200: National Inventory Report, 1990-2011: Greenhouse Gas Sources and Sinks in Canada Part 3, Table A13-2
... 18 more rows

Sheet FuelEFs (hidden)
A1: Fuel | B1: EF | C1: Units | D1: TCR Fuel Name | E1: Reference
A2: Natural gas | B2: 0.05302 | C2: kg CO2/cubic foot | D2: Natural gas | E2: The Climate Registry's 2013 Default Emission Factors, Table 12.1 U.S. Default Factors for Calculating CO2 Emissions from Fossil Fuel and Biomass Combustion
A3: Fuel Oil | B3: 10.20648 | C3: kg CO2/gallon | D3: Distilate Fuel Oil No. 2 | E3: The Climate Registry's 2013 Default Emission Factors, Table 12.1 U.S. Default Factors for Calculating CO2 Emissions from Fossil Fuel and Biomass Combustion (Residual Fuel Oil No.2)
A4: Kerosene | B4: 10.152 | C4: kg CO2/gallon | D4: Kerosene | E4: The Climate Registry's 2013 Default Emission Factors, Table 12.1 U.S. Default Factors for Calculating CO2 Emissions from Fossil Fuel and Biomass Combustion
A5: Propane | B5: 5.59286 | C5: kg CO2/gallon | D5: Propane | E5: The Climate Registry's 2013 Default Emission Factors, Table 13.1 U.S. Default Factors for Transport Fuels
A6: Gasoline | B6: 8.78 | C6: kg CO2/gallon | D6: Gasoline | E6: The Climate Registry's 2013 Default Emission Factors, Table 13.1 U.S. Default Factors for Transport Fuels
A7: Diesel Fuel | B7: 10.21 | C7: kg CO2/gallon | D7: Diesel Fuel | E7: The Climate Registry's 2013 Default Emission Factors, Table 13.1 U.S. Default Factors for Transport Fuels
A8: Aviation Gasoline | B8: 8.31 | C8: kg CO2/gallon | D8: Aviation Gasoline | E8: The Climate Registry's 2013 Default Emission Factors, Table 13.1 U.S. Default Factors for Transport Fuels
A9: Jet Fuel | B9: 9.75 | C9: kg CO2/gallon | D9: Jet Fuel (Jet A or A-1) | E9: The Climate Registry's 2013 Default Emission Factors, Table 13.1 U.S. Default Factors for Transport Fuels
A10: Kerosene | B10: 10.15 | C10: kg CO2/gallon | D10: Kerosene | E10: The Climate Registry's 2013 Default Emission Factors, Table 13.1 U.S. Default Factors for Transport Fuels
A11: RFO (Ships) | B11: 11.27 | C11: kg CO2/gallon | D11: Residual Fuel Oil (#5,6) | E11: The Climate Registry's 2013 Default Emission Factors, Table 13.1 U.S. Default Factors for Transport Fuels (RFO #6)
A12: Biodiesel (B100) | B12: 9.45 | C12: kg CO2/gallon | D12: Biodiesel (B100)* | E12: The Climate Registry's 2013 Default Emission Factors, Table 13.1 U.S. Default Factors for Transport Fuels
A13: B5 | B13: =0.05*B12+0.95*B7 -> 10.172 | C13: kg CO2/gallon | E13: 5% x Biodiesel + 95% x Diesel
A14: B20 | B14: =0.2*B12+0.8*B7 -> 10.058 | C14: kg CO2/gallon | E14: 20% x Biodiesel + 80% x Diesel
A15: B40 | B15: =0.4*B12+0.6*B7 -> 9.906 | C15: kg CO2/gallon | E15: 40% x Biodiesel + 60% x Diesel
A16: B99 | B16: =0.99*B12+0.01*B7 -> 9.4576 | C16: kg CO2/gallon | E16: 99% x Biodiesel + 1% x Diesel
A17: Ethanol (E100) | B17: 5.75 | C17: kg CO2/gallon | D17: Ethanol (E100)* | E17: The Climate Registry's 2013 Default Emission Factors, Table 13.1 U.S. Default Factors for Transport Fuels
A18: E85 | B18: =0.85*B17+0.15*B6 -> 6.2045 | C18: kg CO2/gallon | E18: 85%x Ethanol +15% gasoline
A19: LNG | B19: 4.46 | C19: kg CO2/gallon | D19: Liquefied Natural Gas (LNG)* | E19: The Climate Registry's 2013 Default Emission Factors, Table 13.1 U.S. Default Factors for Transport Fuels
A20: LPG | B20: 5.789690238 | C20: kg CO2/gallon | D20: Liquefied Petroleum Gas (LPG)* | E20: The Climate Registry's 2013 Default Emission Factors, Table 13.1 U.S. Default Factors for Transport Fuels
A21: CNG | B21: =B2*134.71 -> 7.1423242 | C21: kg CO2/gallon equivalent* (converted from kg CO2/std cubic feet) | D21: Compressed Natural Gas (CNG) | E21: The Climate Registry's 2013 Default Emission Factors, Table 13.1 U.S. Default Factors for Transport Fuels
C24: *The National Institute of Standards and Technology reports the mass of one GGE as 5.660 pounds of natural gas . The density of natural gas is 23.8 cubic feet per pound according to the American Petroleum Institute . Thus, a GGE of natural gas is equivalent to 134.71 cubic feet.

Sheet CBECs (hidden)
B1: Electricity | C1: Natural Gas | D1: Fuel Oil
A2: Principal Building Activity | B2: per Square Foot (kWh) | C2: per Square Foot (cubic feet) | D2: per Square Foot (gallons)
A3: Education .................... | B3: 11 | C3: 36.9 | D3: 0.18 | F3: http://www.eia.doe.gov/emeu/cbecs/cbecs2003/detailed_tables_2003/detailed_tables_2003.html#enduse03
A4: Food Sales ................... | B4: 49.4 | C4: 50.2 | D4: Q
A5: Food Service ................. | B5: 38.4 | C5: 141.2 | D5: Q
A6: Health Care .................. | B6: 22.9 | C6: 92.5 | D6: 0.04
A7: Inpatient .................. | B7: 27.5 | C7: 109.8 | D7: 0.04
A8: Outpatient ................. | B8: 16.1 | C8: 50.2 | D8: Q
A9: Lodging ...................... | B9: 13.5 | C9: 48.9 | D9: 0.12
A10: Retail (Other Than Mall)...... | B10: 14.3 | C10: 30.9 | D10: Q
A11: Office ....................... | B11: 17.3 | C11: 31.8 | D11: 0.03
A12: Public Assembly .............. | B12: 12.5 | C12: 36.4 | D12: 0.22
A13: Public Order and Safety ...... | B13: 15.3 | C13: 43.7 | D13: Q
A14: Religious Worship ............ | B14: 4.9 | C14: 30.3 | D14: 0.29
A15: Service ...................... | B15: 11 | C15: 54.1 | D15: Q
A16: Warehouse and Storage ........ | B16: 7.6 | C16: 23.4 | D16: 0.05
A17: Other ........................ | B17: 22.5 | C17: 67.6 | D17: Q
A18: Vacant ....................... | B18: 2.4 | C18: 23 | D18: Q

Sheet Cost (hidden)
A1: Source | B1: $ per standard unit | C1: Standard Unit | D1: Year | E1: Reference
A2: Electricity | B2: 0.1188 | C2: kWh | D2: 2012 | E2: http://www.eia.doe.gov/emeu/steo/pub/
A3: Natural Gas | B3: 0.01066 | C3: cubic foot | D3: 2012 | E3: http://www.eia.doe.gov/emeu/steo/pub/
A4: Fuel Oil | B4: 3.76 | C4: gallon | D4: 2012 | E4: Heating Oil from http://www.eia.doe.gov/emeu/steo/pub/
A5: Gasoline | B5: 3.63 | C5: gallon | D5: 2012 | E5: http://www.eia.doe.gov/emeu/steo/pub/
A6: Diesel | B6: 2.46 | C6: gallon | D6: 2012 | E6: http://www.eia.doe.gov/emeu/steo/pub/
A7: Biodiesel (B100) | B7: =AVERAGE(4.9,5.04) -> 4.97 | C7: gallon | D7: 2013 | E7: Average of Min and Max Values from http://www.ams.usda.gov/mnreports/lswagenergy.pdf
A8: B5 | B8: =B7 -> 4.97 | C8: gallon | E8: assume same as B100
A9: B20 | B9: =B8 -> 4.97 | C9: gallon | E9: assume same as B100
A10: B40 | B10: 4.97 | C10: gallon | E10: assume same as B100
A11: B99 | B11: 4.97 | C11: gallon | E11: assume same as B100
A12: LPG | B12: =AVERAGE(4.29,1.93) -> 3.11 | C12: gallon | D12: 2013 | E12: Average Cost in Los Angeles from http://www.altfuelprices.com/
A13: CNG | B13: =AVERAGE(2.9,2.99) -> 2.945 | C13: gallon | D13: 2013 | E13: Average Cost in Los Angeles from http://www.altfuelprices.com/
A14: LNG | B14: =AVERAGE(2.2,2.19) -> 2.195 | C14: gallon | D14: 2013 | E14: Average Cost in Los Angeles from http://www.altfuelprices.com/
A15: Kerosene | B15: 3.843 | C15: gallon | D15: 2012 | E15: U.S. Price excluding taxes from http://www.eia.gov/dnav/pet/pet_sum_mkt_a_EPPK_PTG_dpgal_a.htm
A16: Residual Fuel Oil | B16: 1.729 | C16: gallon | D16: 2010 | E16: Average U.S. Sales to End Users excluding taxes from http://www.eia.gov/dnav/pet/pet_pri_resid_dcu_nus_a.htm
A17: Propane | B17: 2.484 | C17: gallon | D17: 2013 | E17: http://www.eia.gov/petroleum/heatingoilpropane/ | F17: Note: Steo no longer collects propane data. This is the only source for propane data, though only ~24 states collect data
A18: E85 | B18: =AVERAGE(3.69,3.49) -> 3.59 | C18: gallon | D18: 2013 | E18: Average Cost in Los Angeles from http://www.altfuelprices.com/
A19: Ethanol | B19: =AVERAGE(2.55,2.75) -> 2.65 | C19: gallon | D19: 2013 | E19: Average of Min and Max Values from http://www.ams.usda.gov/mnreports/lswagenergy.pdf

Sheet MPG (hidden)
A1: VehicleType | B1: Fuel Efficiency (mpg) | C1: US DOT classification | D1: Reference Classification
A2: Cars | B2: 23.6 | C2: Passenger Cars | D2: Cars- Ref 1, Page 2
A3: Motorcycles | B3: 56.2 | C3: Motorcycles | D3: Motorcycles- Ref 2
A4: Buses | B4: 6 | C4: Buses | D4: Buses- Ref 3, Page 5
A5: Vans, Pickups, SUVs | B5: 17.5 | C5: Other 2-Axel 4 Tire vehicles | D5: Light Truck 2-Axel 4 Tire- Ref 1, Page 2
A6: Trucks (<18 wheel) | B6: 7.3 | C6: Single-Unit 2-axles 6-tire or more trucks | D6: Class 3-8 single-unit trucks, 2011- Ref 1, Page 131
A7: 18 Wheelers | B7: 5.8 | C7: Combination Trucks | D7: Class 7-8 combination trucks, 2011- Ref 1, Page 131
A8: All Vehicles | B8: 23.8 | C8: All Motor Vehicles | D8: http://www.epa.gov/otaq/fetrends.htm
A10: Reference:
A11: 1-Transportation Energy Data Book: Edition 32 can be found online at: cta.ornl.gov/data
A12: 2-US Department of Transportation, Federal Highway Administration Office of Highway Policy Information, Highway Statistics 2007, December 2008, Table VM-1, Annual Vehicle Distance Traveled in Miles and Related Data-2007, Average miles traveled per gallon of fuel consumed accessed from http://www.fhwa.dot.gov/policyinformation/statistics/2007/
A13: 3-John Dunham & Associates (2010). Motorcoach Census 2011. A Benchmarking Study of the Size and Activity of the Motorcoach Industry in the United States and Canada in 2010. American Bus Association Foundation. Retrieved September 5, 2013 from http://www.buses.org/files/Foundation/Final_Motorcoach_Census_2011_7-3-2012.pdf.

Sheet AirTravel (hidden)
A1: Length Classification | B1: EF (kg CO2/passenger mile) | C1: Max Distance (miles) | D1: Total kg CO2 pkm* | E1: DEFRA Classification | G1: Plane Type | H1: Fuel Type | I1: Gallons per Hour | J1: miles per gallon | M1: Plane Type | N1: Model | O1: Gallons per Hour | P1: Reference
A2: Short | B2: =D2*$D$7 -> 0.2896685624 | C2: =463/D7 -> 287.694862 | D2: =109%*0.16513 -> 0.1799917 | E2: Domestic Average | G2: Chartered Commercial Jet | H2: jet fuel | I2: =ROUND(SUMIF(M:M, G2,O:O )/COUNTIF(M:M, G2), -1) -> 950 | J2: =ROUND(1/2.65,1) -> 0.4 | K2: Climate Leaders Table 4: Fuel Economy Values by Vehicle Type | M2: Chartered Commercial Jet | N2: 737-800 | O2: 850 | P2: http://www.seattlepi.com/business/368286_air25.html
A3: Medium | B3: =D3*$D$7 -> 0.1654020999 | C3: =1108/D7 -> 688.479281 | D3: =1.09*0.09429 -> 0.1027761 | E3: Short-Haul International Average | G3: Large Private Jet | H3: jet fuel | I3: =ROUND(SUMIF(M:M, G3,O:O )/COUNTIF(M:M, G3), -1) -> 440 | J3: =ROUND(1.3, 1) -> 1.3 | K3: http://www.ehow.com/about_5665316_private-suv-jet-fuel-cost.html | M3: Chartered Commercial Jet | N3: MD-80 | O3: 1050 | P3: http://www.seattlepi.com/business/368286_air25.html
A4: Long | B4: =D4*$D$7 -> 0.1892590153 | D4: =1.09*0.10789 -> 0.1176001 | E4: Long-Haul International Average | G4: Small Private Jet | H4: jet fuel | I4: =ROUND(SUMIF(M:M, G4,O:O )/COUNTIF(M:M, G4), -1) -> 220 | J4: 4 | K4: http://www.ehow.com/about_5665316_private-suv-jet-fuel-cost.html | L4: 10 | M4: Small Private Jet | N4: Citation Excel | O4: 250 | P4: Joe Bellas, Universal carbon calculator factors based on equipment manual
A5: Average | B5: =AVERAGE(B2:B4) -> 0.2147765592 | G5: Helicopter | H5: aviation gasoline | I5: =ROUND(SUMIF(M:M, G5,O:O )/COUNTIF(M:M, G5), -1) -> 50 | J5: =ROUND(1.65, 1) -> 1.7 | K5: http://en.wikipedia.org/wiki/Fuel_efficiency_in_transportation | L5: 10 | M5: Small Private Jet | N5: Cessna 50XL Citation | O5: 166 | P5: Joe Bellas, Universal carbon calculator factors based on equipment manual
M6: Small Private Jet | N6: ACG 39 / Lear 45 | O6: 184 | P6: Joe Bellas, Universal carbon calculator factors based on equipment manual
D7: 1.609344 | E7: km = 1 mile | M7: Small Private Jet | N7: Metro III | O7: 80 | P7: Joe Bellas, Universal carbon calculator factors based on equipment manual
M8: Helicopter | N8: Eurocopter 350 B-2 | O8: 45 | P8: Joe Bellas, Universal carbon calculator factors based on equipment manual
D9: *Includes km uplift factor of 109% | L9: 16 | M9: Large Private Jet | N9: G5 | O9: 370 | P9: Joe Bellas, Universal carbon calculator factors based on equipment manual
A10: Reference: | L10: 16 | M10: Large Private Jet | N10: G5 | O10: 510 | P10: Joe Bellas, Universal carbon calculator factors based on equipment manual
A11: Department for Environment, Food and Rural Affairs (2012). 2012 Guidelines to Defra / DECC’s GHG Conversion Factors for Company Reporting. Version 1.0 (updated May 28). Annex 6 Passenger Transport, Table 6l: Air Passenger Transport Conversion Factors | M11: Small Private Jet | N11: Charter - C750 | O11: 316 | P11: Joe Bellas, Universal carbon calculator factors based on equipment manual
M12: Small Private Jet | N12: Charter - Falcon 2000 | O12: 254 | P12: Joe Bellas, Universal carbon calculator factors based on equipment manual
M13: Helicopter | N13: Helicopter - A Star 350 | O13: 45 | P13: Joe Bellas, Universal carbon calculator factors based on equipment manual
A14: 2010 Emission Factor | B14: 2012 Emission Factor | M14: Large Private Jet | N14: Charter - G IV | O14: 450 | P14: Joe Bellas, Universal carbon calculator factors based on equipment manual
A15: (kg CO2e per passenger mile) | B15: (kg CO2e per passenger mile) | C15: % difference | G15: Plane Type | H15: Number of Passengers | M15: Helicopter | N15: Helicopter - A Star 350 | O15: 47 | P15: Joe Bellas, Universal carbon calculator factors based on equipment manual
A16: 0.304 | B16: =109%*0.16685*D7 -> 0.2926857606 | C16: =(B16-A16)/A16 -> -0.03721789284 | G16: Chartered Commercial Jet | H16: >20 | M16: Helicopter | N16: Helicopter - Twin Star | O16: 55 | P16: Joe Bellas, Universal carbon calculator factors based on equipment manual
A17: 0.172 | B17: =1.09*0.09522*D7 -> 0.1670334919 | C17: =(B17-A17)/A17 -> -0.02887504714 | G17: Large Private Jet | H17: 14-20 | M17: Helicopter | N17: Helicopter–EuroAS350BA | O17: 43 | P17: Joe Bellas, Universal carbon calculator factors based on equipment manual
A18: 0.2 | B18: =1.09*0.10896*D7 -> 0.1911359932 | C18: -0.04432003379 | G18: Small Private Jet | H18: 5-13 | M18: Small Private Jet | N18: Citation 550 | O18: 350 | P18: Joe Bellas, Universal carbon calculator factors based on equipment manual
M19: Helicopter | N19: Helecoptor – Bell B212 | O19: 50 | P19: Joe Bellas, Universal carbon calculator factors based on equipment manual
M20: Small Private Jet | N20: Cessna Citation CJ2 | O20: 140 | P20: http://www.jetadvisors.com/aircraft-specs/Description-CessnaCitationCJ2-SmallCabinLightJets.htm

Sheet HotelFactors (hidden)
A1: Room Type | B1: Square Footage | C1: kWh/square foot/yr | D1: kWh/yr | E1: KBtu/sq foot/yr | F1: natural gas/yr | G1: Year
A2: Economy Hotel | B2: 535 | C2: 10.31 | D2: =B2*C2 -> 5515.85 | E2: 42.45 | F2: =E2*Lookups!$E$4/100*B2 -> 233466.51 | G2: 2005 | H2: hotel_casino_analysis.pdf, Table 16 & 17
A3: Midscale Hotel | B3: 656 | C3: 16.57 | D3: =B3*C3 -> 10869.92 | E3: 54.04 | F3: =E3*Lookups!$E$4/100*B3 -> 364428.4672 | G3: 2005 | H3: hotel_casino_analysis.pdf, Table 16 & 18
A4: Upscale Hotel | B4: 842 | C4: 14.96 | D4: =B4*C4 -> 12596.32 | E4: 40.57 | F4: =E4*Lookups!$E$4/100*B4 -> 351164.1832 | G4: 2005 | H4: hotel_casino_analysis.pdf, Table 16 & 19
A5: Luxury Hotel | B5: 905 | C5: 18.18 | D5: =B5*C5 -> 16452.9 | E5: 49.01 | F5: =E5*Lookups!$E$4/100*B5 -> 455959.634 | G5: 2005 | H5: hotel_casino_analysis.pdf, Table 16 & 20
A6: Apartment/Condo | B6: Apartments in 5 or More Unit Buildings | D6: 11320 | G6: 2009 | H6: Residential Energy Consumption Survey (RECS) Table CE2.1 Household Site Fuel Consumption in the U.S., Totals and Averages, 2009 (Released January 2013)
A7: Average House | B7: Total US | D7: 6376 | G7: 2009 | H7: Residential Energy Consumption Survey (RECS) Table CE2.1 Household Site Fuel Consumption in the U.S., Totals and Averages, 2009 (Released January 2013)
A8: Large House | B8: >4000 | D8: 17498 | G8: 2009 | H8: Residential Energy Consumption Survey (RECS) Table CE2.1 Household Site Fuel Consumption in the U.S., Totals and Averages, 2009 (Released January 2013)
A11: Housing Type | B11: Casino Analysis | C11: Examples
A12: Economy Hotel | B12: Economy and Budget | C12: Motel 6, Red Roof, Days Inn
A13: Midscale Hotel | B13: Midscale w/ Food and Beverage | C13: Holiday Inn, Ramada, Best Western
A14: Upscale Hotel | B14: Upscale | C14: Marriot, Hilton
A15: Luxury Hotel | B15: Upper Upscale | C15: Four Seasons, Ritz Carlton
A16: Apartment/Condo | C16: <1000 square feet
A17: Average House | C17: 1000 - 4000 square feet
A18: Large House | C18: >4000 Square feet
F20: Room/House Type

Sheet Plywood tracking (hidden)
A1: Plywood Tracking Worksheet
A4: Production Name | I4: Currently there are only 3 factories in the world that provide 4'x10'x1/4" lauan/meranti
A5: Construction Coordinator | I5: Factory | J5: Location | K5: Brand Name
A6: Production Location | I6: Cymao | J6: Malaysia | K6: Invowood
A7: Did you purchase FSC Certified lauan/meranti? | I7: Kayu Lapis Indonesia | J7: Indonesia | K7: Fuji or Mt. Fuji
A8: If not, why not? | I8: PT Sumalindo Lestari Jaya | J8: Indonesia | K8: Sumalindo or SLJ
A10: Did you purchase alternatives to lauan/meranti?
A11: If yes, please track below
A12: Date of Purchase | B12: PO# | C12: Wood Species or Alternative | D12: Type and Size | E12: Certification (if any) | F12: Primed or Not Primed | G12: Volume / # of Units | H12: Cost per Unit | I12: Direct Supplier Name | J12: Supplier Location | K12: For meranti/lauan, provide factory of origin and/or brand name - if not available, provide country of origin
A13: EX: 3/1/2013 | B13: 456 | C13: Lauan | D13: 4'x10'x1/4" | E13: FSC | F13: Primed | G13: 1 lift / 115 panels | H13: $25/sheet | I13: Topanga Lumber | J13: Los Angeles, CA | K13: PT Sumalindo Lestari Jaya / Sumalindo

Sheet Equivalents (hidden)
B1: http://www.epa.gov/cleanenergy/energy-resources/calculator.html
G2: Homes per Year
B3: 1 MT CO2 Emissions is equivalent to*:
B5: Annual energy use from
B6: =1/19.43 -> 0.05146680391 | C6: homes for one year
B8: Annual emissions from
B9: =1/4.8 -> 0.2083333333 | C9: passenger vehicles
B11: =1/0.039 -> 25.64102564 | C11: tree seedlings grown for 10 years
B13: =1/0.00892 -> 112.1076233 | C13: gallons of gasoline consumed
G17: Passenger Vehicles
G24: Tree Seedlings
G29: Gallons of Gasoline Consumed
